Body Name,Body,Service Division Label,Service Division Code,Organisational Unit,Expenditure Category,Expenditure Code,CIPFA detailed expediture type,CIPFA detailed expediture code,Narrative,Date,Transaction number,Net Amount,Capital and Revenue,Supplier Name,Supplier ID
Chorley Borough Council,http://statistics.data.gov.uk/id/local-authority/30UE,Central Support Services,1009,GROW - Commercial Services,Training Course Fees,17010,Indirect Employee Expenses,5002,"For 6 delegates from Chorley Borough Council and South , Ribble Council attending the Full Day CPD Event at Haydock , Park Raceco",26/07/2023,0182829,510.00,Revenue,ACES North West Branch,69257
Chorley Borough Council,http://statistics.data.gov.uk/id/local-authority/30UE,Capital,Capital,GROW - Commercial Services,Other Capital Related Fees,03024,Capital Expenditure,Capital,AV equipment - Supply and Install AV screens for Tatton Gardens as per quote 994,12/07/2023,0181612,891.50,Capital,Active AV Ltd,21379
Chorley Borough Council,http://statistics.data.gov.uk/id/local-authority/30UE,Central Support Services,1009,CUST - Customer & Digital,Telephones - Other,40085,Communication and Computing,5028,Adept Telecoms - April + May 23,05/07/2023,0181348,"2,034.92",Revenue,Adept Telecom PLC,77452
Chorley Borough Council,http://statistics.data.gov.uk/id/local-authority/30UE,Unapportionable Central OHeads,1009,GROW - Commercial Services,Planned Maintenance,20006,Repairs Maintenance & Alts,5005,Carry out Asbestos Management Survey and Report as per quotation of 12th April 2023,05/07/2023,0181689,"1,237.21",Revenue,Airborne Environmental Consultants Ltd,16521
Chorley Borough Council,http://statistics.data.gov.uk/id/local-authority/30UE,Unapportionable Central OHeads,1009,CUST - Customer & Digital,Bank Charges,40151,Miscellaneous Expenses,5034,CHBC 30/06/23,19/07/2023,0182456,816.57,Revenue,Allpay Net Ltd,17242
Chorley Borough Council,http://statistics.data.gov.uk/id/local-authority/30UE,Open Spaces,1038,GOVN - Policy & Governance,Car Leasing Payment,14100,Direct Employee Expenses,5001,VIN REDACTED,26/07/2023,0182221,"4,220.71",Revenue,Alphabet (Uk) Fleet Management Ltd,16651
Chorley Borough Council,http://statistics.data.gov.uk/id/local-authority/30UE,Central Support Services,1009,GOVN - Policy & Governance,Car Leasing Payment,14100,Direct Employee Expenses,5001,VIN REDACTED,26/07/2023,0182223,"3,500.71",Revenue,Alphabet (Uk) Fleet Management Ltd,16651
Chorley Borough Council,http://statistics.data.gov.uk/id/local-authority/30UE,Business Support,1095,GROW - Commercial Services,Planned Maintenance,20006,Repairs Maintenance & Alts,5005,"Tatton Gardens, , Initial 12mth maintenance contract for all M&E works as agreed and approved by council waiver process",26/07/2023,0183044,"37,983.00",Revenue,Ameon Ltd,88565
Chorley Borough Council,http://statistics.data.gov.uk/id/local-authority/30UE,Central Support Services,1009,CUST - Customer & Digital,Supplies - Workshop,40246,"Equipment, Furniture & Materia",5023,Covering multiple quotes,19/07/2023,0182703,560.00,Revenue,Ampec,76813
Chorley Borough Council,http://statistics.data.gov.uk/id/local-authority/30UE,Central Support Services,1009,CUST - Customer & Digital,Supplies - Workshop,40246,"Equipment, Furniture & Materia",5023,Covering multiple quotes,19/07/2023,0182706,855.00,Revenue,Ampec,76813
Chorley Borough Council,http://statistics.data.gov.uk/id/local-authority/30UE,Business Support,1095,GOVN - Policy & Governance,Grants To Other Organisations,40127,Grants and Subscriptions,5031,Shop front Grant,12/07/2023,0182130,"9,152.25",Revenue,Andrew Poar T/A Poar Robinson Ltd,87098
Chorley Borough Council,http://statistics.data.gov.uk/id/local-authority/30UE,Central Support Services,1009,EARL - Communities,Impounded Dogs Costs,40207,Miscellaneous Expenses,5034,Feb and March Stray Dog Provisions,12/07/2023,0179994,905.60,Revenue,Animal Wardens Ltd,80965
Chorley Borough Council,http://statistics.data.gov.uk/id/local-authority/30UE,Unapportionable Central OHeads,1009,GOVN - Policy & Governance,Car Leasing Payment,14100,Direct Employee Expenses,5001,VIN REDACTED,26/07/2023,0181852,"2,047.45",Revenue,Arnold Clark Finance Ltd,20685
Chorley Borough Council,http://statistics.data.gov.uk/id/local-authority/30UE,Central Support Services,1009,GOVN - Policy & Governance,Car Leasing Payment,14100,Direct Employee Expenses,5001,"Car Lease Quote: 17466957, Driver: NAME REDACTED, Car Spec: BMW 2 SERIES DIESEL GRAN COUPE - 220d M Sport 4dr Step Auto [Pro Pack],",26/07/2023,0182905,"3,635.28",Revenue,Arnold Clark Finance Ltd,20685
Chorley Borough Council,http://statistics.data.gov.uk/id/local-authority/30UE,Central Support Services,1009,GOVN - Policy & Governance,Premises Related Insurances,20068,Premises Related Insurance,5014,Property Damage,05/07/2023,0181349,"3,740.46",Revenue,Arthur J. Gallagher,83531
Chorley Borough Council,http://statistics.data.gov.uk/id/local-authority/30UE,Central Support Services,1009,GOVN - Policy & Governance,Vehicles & Plant Insurance,30038,Transport Insurance,5020,"Fleet Rated Commercial , Motor",05/07/2023,0181350,"1,015.60",Revenue,Arthur J. Gallagher,83531
Chorley Borough Council,http://statistics.data.gov.uk/id/local-authority/30UE,Central Support Services,1009,EARL - Communities,Furniture - Purchase,40012,"Equipment, Furniture & Materia",5023,"Opera 60-5 Mid Black Chair with add ons (lumbar support, memory foam seat, adjustable arm rests and adjustable head rest) As per ",12/07/2023,0180759,555.00,Revenue,Back Care Solutions Ltd,74687
Chorley Borough Council,http://statistics.data.gov.uk/id/local-authority/30UE,Service Management & Support,1009,CUST - Customer & Digital,Hire Of Vehicles and Plant,30028,Contrct Hire & Operating Lease,5018,"As per submission to ITT invitation to Tender for the , contract hire with service and maintenance of , Grounds Maintenance Machi",12/07/2023,0181878,"1,242.40",Revenue,Balmers Garden Machinery,17075
Chorley Borough Council,http://statistics.data.gov.uk/id/local-authority/30UE,Service Management & Support,1009,CUST - Customer & Digital,Hire Of Vehicles and Plant,30028,Contrct Hire & Operating Lease,5018,hire of a John Deere 1580 out front mower for 32weeks @ 200 per week. Starting 27th March 2023,12/07/2023,0181879,800.00,Revenue,Balmers Garden Machinery,17075
Chorley Borough Council,http://statistics.data.gov.uk/id/local-authority/30UE,Tourism,1039,GOVN - Policy & Governance,Publicity - Advertising,40157,Miscellaneous Expenses,5034,Radio Campaign for Chorley Flower Show (CFS) - 27th March - 2nd April and 26th June - 2nd July,12/07/2023,0182426,880.50,Revenue,Bauer Active Ltd,50574
Chorley Borough Council,http://statistics.data.gov.uk/id/local-authority/30UE,Service Management & Support,1009,CUST - Customer & Digital,Grounds Maintenance Contractor,20043,Grounds Maintenance Costs,5013,Reduce trees at ADDRESS REDACTED,12/07/2023,0182273,580.00,Revenue,Beardwood Tree Services,77437
Chorley Borough Council,http://statistics.data.gov.uk/id/local-authority/30UE,Economic Development,1096,GROW - Commercial Services,Electricity,20013,Energy Costs,5006,,12/07/2023,0182560,540.53,Revenue,BES Commercial Electricity Ltd,76115
Chorley Borough Council,http://statistics.data.gov.uk/id/local-authority/30UE,Economic Development,1096,GROW - Commercial Services,Electricity,20013,Energy Costs,5006,2/10/22 to 15/4/23,12/07/2023,0182563,"6,600.89",Revenue,BES Commercial Electricity Ltd,76115
Chorley Borough Council,http://statistics.data.gov.uk/id/local-authority/30UE,Economic Development,1096,GROW - Commercial Services,Electricity,20013,Energy Costs,5006,15/6 to 15/7/23,26/07/2023,0183013,"2,178.72",Revenue,BES Commercial Electricity Ltd,76115
Chorley Borough Council,http://statistics.data.gov.uk/id/local-authority/30UE,Business Support,1095,GROW - Commercial Services,General Repairs - Reactive,20004,Repairs Maintenance & Alts,5005,Primrose Gardens Reactive General Building Repair Works,05/07/2023,0181641,"1,224.79",Revenue,Bryan Lee Building Contractors Ltd,78160
Chorley Borough Council,http://statistics.data.gov.uk/id/local-authority/30UE,Business Support,1095,GROW - Commercial Services,General Repairs - Reactive,20004,Repairs Maintenance & Alts,5005,Primrose Gardens Reactive General Building Repair Works,12/07/2023,0181643,538.70,Revenue,Bryan Lee Building Contractors Ltd,78160
Chorley Borough Council,http://statistics.data.gov.uk/id/local-authority/30UE,Business Support,1095,GROW - Commercial Services,General Repairs - Reactive,20004,Repairs Maintenance & Alts,5005,Primrose Gardens Reactive General Building Repair Works,12/07/2023,0181644,"2,497.79",Revenue,Bryan Lee Building Contractors Ltd,78160
Chorley Borough Council,http://statistics.data.gov.uk/id/local-authority/30UE,Unapportionable Central OHeads,1009,GROW - Commercial Services,General Repairs - Reactive,20004,Repairs Maintenance & Alts,5005,Bengal Street Reactive General Building Repair Works,05/07/2023,0181685,"1,945.89",Revenue,Bryan Lee Building Contractors Ltd,78160
Chorley Borough Council,http://statistics.data.gov.uk/id/local-authority/30UE,Unapportionable Central OHeads,1009,GROW - Commercial Services,General Repairs - Reactive,20004,Repairs Maintenance & Alts,5005,CBC Community Centres Reactive General Building Repair Works,26/07/2023,0181686,587.75,Revenue,Bryan Lee Building Contractors Ltd,78160
Chorley Borough Council,http://statistics.data.gov.uk/id/local-authority/30UE,Business Support,1095,GROW - Commercial Services,General Repairs - Reactive,20004,Repairs Maintenance & Alts,5005,Strawberry Fields Reactive General Building Repair Works,05/07/2023,0181693,"1,364.50",Revenue,Bryan Lee Building Contractors Ltd,78160
Chorley Borough Council,http://statistics.data.gov.uk/id/local-authority/30UE,Business Support,1095,GROW - Commercial Services,General Repairs - Reactive,20004,Repairs Maintenance & Alts,5005,"Door Restrictors for 64 flats, Instruction as Per NAME REDACTED",12/07/2023,0181880,"7,360.00",Revenue,Bryan Lee Building Contractors Ltd,78160
Chorley Borough Council,http://statistics.data.gov.uk/id/local-authority/30UE,Unapportionable Central OHeads,1009,GROW - Commercial Services,General Repairs - Reactive,20004,Repairs Maintenance & Alts,5005,CBC Parks Reactive General Building Repair Works,12/07/2023,0181908,642.36,Revenue,Bryan Lee Building Contractors Ltd,78160
Chorley Borough Council,http://statistics.data.gov.uk/id/local-authority/30UE,Central Support Services,1009,EARL - Communities,Misc Expenses,40200,Miscellaneous Expenses,5034,For additional path and lighting work at Red Bank - Scout Hut,05/07/2023,0182064,"8,324.97",Revenue,Bryan Lee Building Contractors Ltd,78160
Chorley Borough Council,http://statistics.data.gov.uk/id/local-authority/30UE,Unapportionable Central OHeads,1009,GROW - Commercial Services,General Repairs - Reactive,20004,Repairs Maintenance & Alts,5005,CBC Housing Reactive General Building Repair Works,19/07/2023,0182100,699.98,Revenue,Bryan Lee Building Contractors Ltd,78160
Chorley Borough Council,http://statistics.data.gov.uk/id/local-authority/30UE,Unapportionable Central OHeads,1009,GROW - Commercial Services,General Repairs - Reactive,20004,Repairs Maintenance & Alts,5005,CBC Housing Reactive General Building Repair Works,19/07/2023,0182101,"1,275.48",Revenue,Bryan Lee Building Contractors Ltd,78160
Chorley Borough Council,http://statistics.data.gov.uk/id/local-authority/30UE,Capital,Capital,GROW - Commercial Services,Other Capital Related Fees,03024,Capital Expenditure,Capital,"ADDRESS REDACTED	, , Residential Property Refurbishment following purchase as per quotation",19/07/2023,0182115,"37,009.84",Capital,Bryan Lee Building Contractors Ltd,78160
Chorley Borough Council,http://statistics.data.gov.uk/id/local-authority/30UE,Unapportionable Central OHeads,1009,GROW - Commercial Services,General Repairs - Reactive,20004,Repairs Maintenance & Alts,5005,Town Hall - Reactive Repairs,05/07/2023,0182285,"1,323.17",Revenue,Bryan Lee Building Contractors Ltd,78160
Chorley Borough Council,http://statistics.data.gov.uk/id/local-authority/30UE,Unapportionable Central OHeads,1009,GROW - Commercial Services,General Repairs - Reactive,20004,Repairs Maintenance & Alts,5005,Town Hall Reactive General Building Repair Works,19/07/2023,0182310,"5,450.24",Revenue,Bryan Lee Building Contractors Ltd,78160
Chorley Borough Council,http://statistics.data.gov.uk/id/local-authority/30UE,Unapportionable Central OHeads,1009,GROW - Commercial Services,General Repairs - Reactive,20004,Repairs Maintenance & Alts,5005,"Whittle Surgery / Parish, , Works as agreed with NAME REDACTED following handover of building and snagging incomplete by original builde",19/07/2023,0182372,"3,995.25",Revenue,Bryan Lee Building Contractors Ltd,78160
Chorley Borough Council,http://statistics.data.gov.uk/id/local-authority/30UE,Unapportionable Central OHeads,1009,GROW - Commercial Services,General Repairs - Reactive,20004,Repairs Maintenance & Alts,5005,,19/07/2023,0182372,"1,538.14",Revenue,Bryan Lee Building Contractors Ltd,78160
Chorley Borough Council,http://statistics.data.gov.uk/id/local-authority/30UE,Unapportionable Central OHeads,1009,GROW - Commercial Services,General Repairs - Reactive,20004,Repairs Maintenance & Alts,5005,Housing - Reactive Repairs,12/07/2023,0182407,"5,316.09",Revenue,Bryan Lee Building Contractors Ltd,78160
Chorley Borough Council,http://statistics.data.gov.uk/id/local-authority/30UE,Unapportionable Central OHeads,1009,GROW - Commercial Services,General Repairs - Reactive,20004,Repairs Maintenance & Alts,5005,Cotswold- Reactive Repairs,12/07/2023,0182408,606.44,Revenue,Bryan Lee Building Contractors Ltd,78160
Chorley Borough Council,http://statistics.data.gov.uk/id/local-authority/30UE,Unapportionable Central OHeads,1009,GROW - Commercial Services,General Repairs - Reactive,20004,Repairs Maintenance & Alts,5005,"Chorley surgery, , replace Lintel and windows as agreed with NAME REDACTED and issued on TF (Jan 23)",12/07/2023,0182433,"3,411.65",Revenue,Bryan Lee Building Contractors Ltd,78160
Chorley Borough Council,http://statistics.data.gov.uk/id/local-authority/30UE,Unapportionable Central OHeads,1009,GROW - Commercial Services,General Repairs - Reactive,20004,Repairs Maintenance & Alts,5005,Town Hall Reactive General Building Repair Works,19/07/2023,0182606,"1,208.32",Revenue,Bryan Lee Building Contractors Ltd,78160
Chorley Borough Council,http://statistics.data.gov.uk/id/local-authority/30UE,Central Support Services,1009,CUST - Customer & Digital,Telephones - Rentals,40083,Communication and Computing,5028,,05/07/2023,0182131,"2,201.22",Revenue,BT Redcare,21115
Chorley Borough Council,http://statistics.data.gov.uk/id/local-authority/30UE,Central Support Services,1009,CUST - Customer & Digital,Telephones - Rentals,40083,Communication and Computing,5028,22/6/23 to 21/6/24,05/07/2023,0182276,"2,298.98",Revenue,BT Redcare,21115
Chorley Borough Council,http://statistics.data.gov.uk/id/local-authority/30UE,Unapportionable Central OHeads,1009,CUST - Customer & Digital,Agency Staff,13000,Direct Employee Expenses,5001,Benefits Processing work w/e 14.05.23 to 03.07.23 (half of total cost),19/07/2023,0182462,"2,301.00",Revenue,Business Smart Solutions Ltd,88577
Chorley Borough Council,http://statistics.data.gov.uk/id/local-authority/30UE,Service Management & Support,1009,CUST - Customer & Digital,Vehicles and Plant Maintenance,30045,Direct Transport Costs,5016,"As per NAME REDACTED No- 33534 , Job number- 3378",12/07/2023,0182067,957.76,Revenue,C P Davidson & Sons Ltd,21093
Chorley Borough Council,http://statistics.data.gov.uk/id/local-authority/30UE,Parking Services,1066,GROW - Commercial Services,External Contractors,50008,Private Contractors,5042,"Processing 075, , Processing 076, , Processing 077, , Processing 079, , Processing 080, , Processing 085, , Processing 086, , MIP",12/07/2023,0182481,753.73,Revenue,Chipside Ltd,22063
Chorley Borough Council,http://statistics.data.gov.uk/id/local-authority/30UE,Central Support Services,1009,GOVN - Policy & Governance,Other Contributions,40145,Grants and Subscriptions,5031,Scooter replacement,12/07/2023,0181071,"1,389.00",Revenue,Chorley & South Ribble Shopmobility,18403
Chorley Borough Council,http://statistics.data.gov.uk/id/local-authority/30UE,Regulatory Services,1048,PLAN - Planning & Development,Taxi Testing & Vehicle Safety Report,40234,Services,5027,JUNE 2023,12/07/2023,0182493,"1,261.55",Revenue,Chorley Autocare Ltd,17110
Chorley Borough Council,http://statistics.data.gov.uk/id/local-authority/30UE,Recreation & Sport,1037,GOVN - Policy & Governance,External Contractors,50008,Private Contractors,5042,2023-24 Subsidy payment,19/07/2023,0182900,"88,000.00",Revenue,Chorley Leisure Ltd,83376
Chorley Borough Council,http://statistics.data.gov.uk/id/local-authority/30UE,Central Support Services,1009,EARL - Communities,Children's Activities,40188,Miscellaneous Expenses,5034,Delivery of PASTA programme 23/24 � second payment,26/07/2023,0183074,"9,307.00",Revenue,Chorley School Sport Partnership,56115
Chorley Borough Council,http://statistics.data.gov.uk/id/local-authority/30UE,Central Support Services,1009,EARL - Communities,Misc Expenses,40200,Miscellaneous Expenses,5034,Expansion of Chorley summer HAF programme 2023 as per neighbourhood priority agreement - delivery element,26/07/2023,0183075,"2,000.00",Revenue,Chorley School Sport Partnership,56115
Chorley Borough Council,http://statistics.data.gov.uk/id/local-authority/30UE,Corporate Management,1008,EARL - Communities,Other Contributions,40145,Grants and Subscriptions,5031,Delivery of expansion to summer HAF places as per neighbourhood priority agreement - food element,26/07/2023,0183076,900.00,Revenue,Chorley School Sport Partnership,56115
Chorley Borough Council,http://statistics.data.gov.uk/id/local-authority/30UE,Corporate Management,1008,EARL - Communities,Other Contributions,40145,Grants and Subscriptions,5031,Household Support fund 4 - 1st Payment of 2,19/07/2023,0182870,"2,625.00",Revenue,Chorley United Reformed Church,77003
Chorley Borough Council,http://statistics.data.gov.uk/id/local-authority/30UE,Community Development,1097,EARL - Communities,Core Funding Grants,40133,Grants and Subscriptions,5031,Delivery of Commissioned service - 1st Payment,05/07/2023,0182281,"4,000.00",Revenue,Chorley Womens Centre,17036
Chorley Borough Council,http://statistics.data.gov.uk/id/local-authority/30UE,Community Development,1097,EARL - Communities,Core Funding Grants,40133,Grants and Subscriptions,5031,Delivery of Commissioned service - 1st payment - Release Counselling,05/07/2023,0182282,"4,000.00",Revenue,Chorley Womens Centre,17036
Chorley Borough Council,http://statistics.data.gov.uk/id/local-authority/30UE,Community Development,1097,EARL - Communities,Core Funding Grants,40133,Grants and Subscriptions,5031,Additional support - wellbeing of vulnerable adults,05/07/2023,0182283,"3,500.00",Revenue,Chorley Womens Centre,17036
Chorley Borough Council,http://statistics.data.gov.uk/id/local-authority/30UE,Central Support Services,1009,EARL - Communities,Other Contributions,40145,Grants and Subscriptions,5031,Delivery of Detached youth work programme 2023/24,26/07/2023,0183004,"20,000.00",Revenue,Chorley Youth Zone,77339
Chorley Borough Council,http://statistics.data.gov.uk/id/local-authority/30UE,Central Support Services,1009,GOVN - Policy & Governance,Training Course Fees,17010,Indirect Employee Expenses,5002,"Better Governance Forum, 01.04.2023 - 31.03.2024",26/07/2023,0183036,"3,592.50",Revenue,CIPFA Business Ltd,16247
Chorley Borough Council,http://statistics.data.gov.uk/id/local-authority/30UE,Corporate Management,1008,EARL - Communities,Other Contributions,40145,Grants and Subscriptions,5031,Household support fund 4 - 1st payment,05/07/2023,0182078,"93,500.00",Revenue,Citizens Advice Lancashire,17035
Chorley Borough Council,http://statistics.data.gov.uk/id/local-authority/30UE,Economic Development,1096,GROW - Commercial Services,Fixtures & Fittings - Repair/Mtnce,20028,Fixtures and Fittings,5010,"Anchor testing for Chorley Town Centre Catenary wire. 65 points as previous list, Total 2130",12/07/2023,0181646,"2,130.00",Revenue,City Illuminations Ltd,77388
Chorley Borough Council,http://statistics.data.gov.uk/id/local-authority/30UE,Central Support Services,1009,CUST - Customer & Digital,Computer Software-Maintenance,40107,Communication and Computing,5028,civic pay annual subscription,05/07/2023,0181038,"16,875.00",Revenue,Civica UK Limited,17463
Chorley Borough Council,http://statistics.data.gov.uk/id/local-authority/30UE,Homelessness,1075,EARL - Communities,Computer Software-Maintenance,40107,Communication and Computing,5028,"Licence, Support & Maintenance for the period 01/07/2023 - 30/06/2024 (For Jigsaw Homes North), Hosting for CCH/Jigsaw - 2238.80",05/07/2023,0182040,"6,902.21",Revenue,Civica UK Limited,17463
Chorley Borough Council,http://statistics.data.gov.uk/id/local-authority/30UE,Homelessness,1075,EARL - Communities,Computer Software-Maintenance,40107,Communication and Computing,5028,"Licence, Support & Maintenance for the period 01/07/2023 - 30/06/2024 (For Places for People), Hosting for Places for People - 2",05/07/2023,0182041,"6,902.21",Revenue,Civica UK Limited,17463
Chorley Borough Council,http://statistics.data.gov.uk/id/local-authority/30UE,Homelessness,1075,EARL - Communities,Grants - Tenant Participation,40142,Grants and Subscriptions,5031,,26/07/2023,0182778,500.00,Revenue,Claire Pilkington,85424
Chorley Borough Council,http://statistics.data.gov.uk/id/local-authority/30UE,Unapportionable Central OHeads,1009,GOVN - Policy & Governance,First Aid Supplies,40031,"Equipment, Furniture & Materia",5023,"First Aid Supplies as requested by NAME REDACTED 1.6.23, , Medium sterile dressings, Product code PX001/12 -	5 packs of 12 @ 15.3",05/07/2023,0181606,636.45,Revenue,CMUK Visual Safety Ltd,22496
Chorley Borough Council,http://statistics.data.gov.uk/id/local-authority/30UE,Democratic Represent and  Mgnt,1007,GOVN - Policy & Governance,Grants To Other Organisations,40127,Grants and Subscriptions,5031,Cllr Comm. Grant 23-24 - NAME REDACTED,12/07/2023,0182442,500.00,Revenue,Coppull United Football Club,82025
Chorley Borough Council,http://statistics.data.gov.uk/id/local-authority/30UE,Central Support Services,1009,CUST - Customer & Digital,CCTV Camera Maintenance,40007,"Equipment, Furniture & Materia",5023,"Q13707, ducting at Astley Park, Total cost 7,710.00 and included all digging, power, fibre and reinstatement work. , , In terms ",05/07/2023,0181295,"7,710.00",Revenue,Core Integrated Solutions,77043
Chorley Borough Council,http://statistics.data.gov.uk/id/local-authority/30UE,Central Support Services,1009,CUST - Customer & Digital,Computer Equipment-Purchase,40098,Communication and Computing,5028,"Astley Park Fibre, CCTV Camera, Electrical and Wi-Fi Install",05/07/2023,0181785,"5,676.67",Revenue,Core Integrated Solutions,77043
Chorley Borough Council,http://statistics.data.gov.uk/id/local-authority/30UE,Culture & Heritage,1036,GOVN - Policy & Governance,Souvenirs,40033,"Equipment, Furniture & Materia",5023,"Product	 Code	 Qty	 Unit Price	 Total	 design, Will Bear	 6643	 96	 6.43	 617.28	 Astley Hall logo, Fridge Magnets	4988	 500",26/07/2023,0182978,"1,062.28",Revenue,Cornflower Ltd,80936
Chorley Borough Council,http://statistics.data.gov.uk/id/local-authority/30UE,Democratic Represent and  Mgnt,1007,GROW - Commercial Services,Gas,20014,Energy Costs,5006,Water street,05/07/2023,0181950,"37,173.68",Revenue,Corona Energy Retail 2 Ltd,67249
Chorley Borough Council,http://statistics.data.gov.uk/id/local-authority/30UE,Democratic Represent and  Mgnt,1007,GROW - Commercial Services,Gas,20014,Energy Costs,5006,Water street,05/07/2023,0181952,"38,953.05",Revenue,Corona Energy Retail 2 Ltd,67249
Chorley Borough Council,http://statistics.data.gov.uk/id/local-authority/30UE,Unapportionable Central OHeads,1009,GROW - Commercial Services,Gas,20014,Energy Costs,5006,,05/07/2023,0182132,"3,301.46",Revenue,Corona Energy Retail 2 Ltd,67249
Chorley Borough Council,http://statistics.data.gov.uk/id/local-authority/30UE,Business Support,1095,GROW - Commercial Services,Gas,20014,Energy Costs,5006,Fleet Street,05/07/2023,0182133,"7,370.25",Revenue,Corona Energy Retail 2 Ltd,67249
Chorley Borough Council,http://statistics.data.gov.uk/id/local-authority/30UE,Democratic Represent and  Mgnt,1007,GROW - Commercial Services,Gas,20014,Energy Costs,5006,,05/07/2023,0182137,"1,141.94",Revenue,Corona Energy Retail 2 Ltd,67249
Chorley Borough Council,http://statistics.data.gov.uk/id/local-authority/30UE,Homelessness,1075,GROW - Commercial Services,Gas,20014,Energy Costs,5006,,05/07/2023,0182140,"4,796.42",Revenue,Corona Energy Retail 2 Ltd,67249
Chorley Borough Council,http://statistics.data.gov.uk/id/local-authority/30UE,Recreation & Sport,1037,GROW - Commercial Services,Gas,20014,Energy Costs,5006,,05/07/2023,0182141,"8,627.33",Revenue,Corona Energy Retail 2 Ltd,67249
Chorley Borough Council,http://statistics.data.gov.uk/id/local-authority/30UE,Democratic Represent and  Mgnt,1007,GROW - Commercial Services,Gas,20014,Energy Costs,5006,,05/07/2023,0182142,"31,413.21",Revenue,Corona Energy Retail 2 Ltd,67249
Chorley Borough Council,http://statistics.data.gov.uk/id/local-authority/30UE,Central Support Services,1009,GROW - Commercial Services,Gas,20014,Energy Costs,5006,,05/07/2023,0182143,"4,076.20",Revenue,Corona Energy Retail 2 Ltd,67249
Chorley Borough Council,http://statistics.data.gov.uk/id/local-authority/30UE,Recreation & Sport,1037,GROW - Commercial Services,Gas,20014,Energy Costs,5006,Centre Drive,05/07/2023,0182146,"3,999.98",Revenue,Corona Energy Retail 2 Ltd,67249
Chorley Borough Council,http://statistics.data.gov.uk/id/local-authority/30UE,Recreation & Sport,1037,GROW - Commercial Services,Gas,20014,Energy Costs,5006,,05/07/2023,0182148,553.00,Revenue,Corona Energy Retail 2 Ltd,67249
Chorley Borough Council,http://statistics.data.gov.uk/id/local-authority/30UE,Democratic Represent and  Mgnt,1007,GROW - Commercial Services,Gas,20014,Energy Costs,5006,,05/07/2023,0182151,614.01,Revenue,Corona Energy Retail 2 Ltd,67249
Chorley Borough Council,http://statistics.data.gov.uk/id/local-authority/30UE,Democratic Represent and  Mgnt,1007,GROW - Commercial Services,Gas,20014,Energy Costs,5006,,05/07/2023,0182152,"3,785.59",Revenue,Corona Energy Retail 2 Ltd,67249
Chorley Borough Council,http://statistics.data.gov.uk/id/local-authority/30UE,Democratic Represent and  Mgnt,1007,GROW - Commercial Services,Gas,20014,Energy Costs,5006,apr - may 23,05/07/2023,0182226,"4,104.39",Revenue,Corona Energy Retail 2 Ltd,67249
Chorley Borough Council,http://statistics.data.gov.uk/id/local-authority/30UE,Central Support Services,1009,GROW - Commercial Services,Gas,20014,Energy Costs,5006,apr - may 23,05/07/2023,0182227,707.43,Revenue,Corona Energy Retail 2 Ltd,67249
Chorley Borough Council,http://statistics.data.gov.uk/id/local-authority/30UE,Central Support Services,1009,GROW - Commercial Services,Gas,20014,Energy Costs,5006,mar-apr23,05/07/2023,0182228,959.33,Revenue,Corona Energy Retail 2 Ltd,67249
Chorley Borough Council,http://statistics.data.gov.uk/id/local-authority/30UE,Central Support Services,1009,GROW - Commercial Services,Gas,20014,Energy Costs,5006,jan - feb 23,05/07/2023,0182230,"1,216.81",Revenue,Corona Energy Retail 2 Ltd,67249
Chorley Borough Council,http://statistics.data.gov.uk/id/local-authority/30UE,Central Support Services,1009,GROW - Commercial Services,Gas,20014,Energy Costs,5006,feb-mar 23,05/07/2023,0182231,"1,283.55",Revenue,Corona Energy Retail 2 Ltd,67249
Chorley Borough Council,http://statistics.data.gov.uk/id/local-authority/30UE,Central Support Services,1009,GROW - Commercial Services,Gas,20014,Energy Costs,5006,dec 22 - jan 23,05/07/2023,0182232,"1,016.22",Revenue,Corona Energy Retail 2 Ltd,67249
Chorley Borough Council,http://statistics.data.gov.uk/id/local-authority/30UE,Central Support Services,1009,GROW - Commercial Services,Gas,20014,Energy Costs,5006,oct - nov 22,05/07/2023,0182233,564.47,Revenue,Corona Energy Retail 2 Ltd,67249
Chorley Borough Council,http://statistics.data.gov.uk/id/local-authority/30UE,Central Support Services,1009,GROW - Commercial Services,Gas,20014,Energy Costs,5006,,05/07/2023,0182236,895.39,Revenue,Corona Energy Retail 2 Ltd,67249
Chorley Borough Council,http://statistics.data.gov.uk/id/local-authority/30UE,Recreation & Sport,1037,GROW - Commercial Services,Gas,20014,Energy Costs,5006,Centre Drive,26/07/2023,0182872,"2,242.03",Revenue,Corona Energy Retail 2 Ltd,67249
Chorley Borough Council,http://statistics.data.gov.uk/id/local-authority/30UE,Unapportionable Central OHeads,1009,GROW - Commercial Services,Gas,20014,Energy Costs,5006,Town Hall,26/07/2023,0182873,"1,612.53",Revenue,Corona Energy Retail 2 Ltd,67249
Chorley Borough Council,http://statistics.data.gov.uk/id/local-authority/30UE,Central Support Services,1009,GROW - Commercial Services,Gas,20014,Energy Costs,5006,Westway,26/07/2023,0182874,577.87,Revenue,Corona Energy Retail 2 Ltd,67249
Chorley Borough Council,http://statistics.data.gov.uk/id/local-authority/30UE,Democratic Represent and  Mgnt,1007,GROW - Commercial Services,Gas,20014,Energy Costs,5006,Astley village community centre,26/07/2023,0182877,725.64,Revenue,Corona Energy Retail 2 Ltd,67249
Chorley Borough Council,http://statistics.data.gov.uk/id/local-authority/30UE,Business Support,1095,GROW - Commercial Services,Gas,20014,Energy Costs,5006,Fleet street,26/07/2023,0182880,"6,327.26",Revenue,Corona Energy Retail 2 Ltd,67249
Chorley Borough Council,http://statistics.data.gov.uk/id/local-authority/30UE,Homelessness,1075,GROW - Commercial Services,Gas,20014,Energy Costs,5006,Cotswold,26/07/2023,0182881,"3,455.96",Revenue,Corona Energy Retail 2 Ltd,67249
Chorley Borough Council,http://statistics.data.gov.uk/id/local-authority/30UE,Democratic Represent and  Mgnt,1007,GROW - Commercial Services,Gas,20014,Energy Costs,5006,Astley Coach house,26/07/2023,0182884,"1,756.16",Revenue,Corona Energy Retail 2 Ltd,67249
Chorley Borough Council,http://statistics.data.gov.uk/id/local-authority/30UE,Recreation & Sport,1037,GROW - Commercial Services,Gas,20014,Energy Costs,5006,Lodge bank,26/07/2023,0182886,"8,054.54",Revenue,Corona Energy Retail 2 Ltd,67249
Chorley Borough Council,http://statistics.data.gov.uk/id/local-authority/30UE,Central Support Services,1009,GROW - Commercial Services,Gas,20014,Energy Costs,5006,Civic Office,26/07/2023,0182887,"3,551.98",Revenue,Corona Energy Retail 2 Ltd,67249
Chorley Borough Council,http://statistics.data.gov.uk/id/local-authority/30UE,Democratic Represent and  Mgnt,1007,GROW - Commercial Services,Gas,20014,Energy Costs,5006,Astley Hall,26/07/2023,0182888,"2,197.18",Revenue,Corona Energy Retail 2 Ltd,67249
Chorley Borough Council,http://statistics.data.gov.uk/id/local-authority/30UE,Democratic Represent and  Mgnt,1007,GROW - Commercial Services,Gas,20014,Energy Costs,5006,Water street,26/07/2023,0182889,"29,502.77",Revenue,Corona Energy Retail 2 Ltd,67249
Chorley Borough Council,http://statistics.data.gov.uk/id/local-authority/30UE,Central Support Services,1009,GROW - Commercial Services,Legal Fees,40171,Miscellaneous Expenses,5034,"Harding St Car Park, , Abandoned car enforcement charges as instructed by NAME REDACTED",12/07/2023,0182075,700.00,Revenue,COURT ENFORCEMENT SPECIALISTS LTD,77924
Chorley Borough Council,http://statistics.data.gov.uk/id/local-authority/30UE,Central Support Services,1009,EARL - Communities,Bailiffs' Fees,40071,Services,5027,Darian House Playing Fields GRT Encampment,12/07/2023,0182558,"4,475.00",Revenue,COURT ENFORCEMENT SPECIALISTS LTD,77924
Chorley Borough Council,http://statistics.data.gov.uk/id/local-authority/30UE,Unapportionable Central OHeads,1009,GOVN - Policy & Governance,Search Fees,40068,Services,5027,12 month CreditSafe renewal from 27/6/23-27/6/24. Plus 250 pre-renewal purchase for 25 extra checks required at 10 each.,12/07/2023,0182311,"2,400.00",Revenue,Creditsafe Business Solutions Limited,77447
Chorley Borough Council,http://statistics.data.gov.uk/id/local-authority/30UE,Other Short Term Debtors,,GOVN - Policy & Governance,Other Debtors,00098,Balance Sheet,Balance,Cyclescheme for NAME REDACTED,26/07/2023,0171156,500.00,Revenue,Cyclescheme Ltd,78414
Chorley Borough Council,http://statistics.data.gov.uk/id/local-authority/30UE,Other Short Term Debtors,,GOVN - Policy & Governance,Other Debtors,00098,Balance Sheet,Balance,Cyclescheme for NAME REDACTED - Invoice W690946,26/07/2023,0183028,500.00,Revenue,Cyclescheme Ltd,78414
Chorley Borough Council,http://statistics.data.gov.uk/id/local-authority/30UE,Capital,Capital,EARL - Communities,Grants,03002,Capital Expenditure,Capital,ADDRESS REDACTED,05/07/2023,0182157,"5,540.00",Capital,D J Bathing,78482
Chorley Borough Council,http://statistics.data.gov.uk/id/local-authority/30UE,Capital,Capital,EARL - Communities,Grants,03002,Capital Expenditure,Capital,23/00013/CAG,19/07/2023,0182740,"5,295.00",Capital,D J Bathing,78482
Chorley Borough Council,http://statistics.data.gov.uk/id/local-authority/30UE,Capital,Capital,EARL - Communities,Grants,03002,Capital Expenditure,Capital,ADDRESS REDACTED,26/07/2023,0183080,"4,725.00",Capital,D J Bathing,78482
Chorley Borough Council,http://statistics.data.gov.uk/id/local-authority/30UE,Central Support Services,1009,CUST - Customer & Digital,IT Consultancy Fees,40223,Services,5027,NAME REDACTED Consultancy,12/07/2023,0182443,500.00,Revenue,Daniel Critchley,87247
Chorley Borough Council,http://statistics.data.gov.uk/id/local-authority/30UE,Capital,Capital,GROW - Commercial Services,Main Contractor,03007,Capital Expenditure,Capital,"Technical Deep Clean of the server room in Town Hall as agreed with NAME REDACTED, Requested by NAME REDACTED",05/07/2023,0181707,"1,950.00",Capital,Data Centre UK,85504
Chorley Borough Council,http://statistics.data.gov.uk/id/local-authority/30UE,Central Support Services,1009,CUST - Customer & Digital,Computer Software-Maintenance,40107,Communication and Computing,5028,"SRTG15KXLI, , APC Smart-UPS RT - UPS (rack-mountable / external) - AC, 380/400/415 V - 15000 Watt - 15000 VA - RS-232, USB,, Ethe",05/07/2023,0181792,"1,800.00",Revenue,Data Centre UK,85504
Chorley Borough Council,http://statistics.data.gov.uk/id/local-authority/30UE,Corporate Management,1008,GOVN - Policy & Governance,Refreshments,40036,Catering,5024,first aid training sessions one in May for 5 people and one in June for 9 people totalling 700 at 50 per head,26/07/2023,0182710,700.00,Revenue,DGF First Aid Training,72087
Chorley Borough Council,http://statistics.data.gov.uk/id/local-authority/30UE,Capital,Capital,PLAN - Planning & Development,Main Contractor,03007,Capital Expenditure,Capital,Pitch Maintenance King George V Playing Fields 2022/2023,12/07/2023,0182044,"1,135.90",Capital,Duncan Ross Ltd,76803
Chorley Borough Council,http://statistics.data.gov.uk/id/local-authority/30UE,Culture & Heritage,1036,GOVN - Policy & Governance,Consultants` Fees,40077,Services,5027,"Consultancy - 3 x Days @ 250 Business Proposal, , Consultancy for catering offer at Astley Hall",19/07/2023,0182708,750.00,Revenue,Dwayne Kettlewell,89378
Chorley Borough Council,http://statistics.data.gov.uk/id/local-authority/30UE,Business Support,1095,GROW - Commercial Services,Electricity,20013,Energy Costs,5006,1/5-31/5/22,26/07/2023,0168672,538.86,Revenue,E.On,21330
Chorley Borough Council,http://statistics.data.gov.uk/id/local-authority/30UE,Business Support,1095,GROW - Commercial Services,Electricity,20013,Energy Costs,5006,1/6 to 30/6/22,26/07/2023,0169211,525.96,Revenue,E.On,21330
Chorley Borough Council,http://statistics.data.gov.uk/id/local-authority/30UE,Business Support,1095,GROW - Commercial Services,Electricity,20013,Energy Costs,5006,"A-12FA2619, 01 Apr 22 - 30 Apr 22",26/07/2023,0182018,554.82,Revenue,E.On,21330
Chorley Borough Council,http://statistics.data.gov.uk/id/local-authority/30UE,Business Support,1095,GROW - Commercial Services,Electricity,20013,Energy Costs,5006,"A-12FA2619, 26 Jan 22 - 28 Feb 22",26/07/2023,0182019,526.00,Revenue,E.On,21330
Chorley Borough Council,http://statistics.data.gov.uk/id/local-authority/30UE,Business Support,1095,GROW - Commercial Services,Electricity,20013,Energy Costs,5006,"A-12FA2619, 01 Mar 22 - 31 Mar 22",26/07/2023,0182020,649.63,Revenue,E.On,21330
Chorley Borough Council,http://statistics.data.gov.uk/id/local-authority/30UE,Business Support,1095,GROW - Commercial Services,Electricity,20013,Energy Costs,5006,ADDRESS REDACTED,26/07/2023,0182745,672.48,Revenue,E.On,21330
Chorley Borough Council,http://statistics.data.gov.uk/id/local-authority/30UE,Business Support,1095,GROW - Commercial Services,Electricity,20013,Energy Costs,5006,1/1/22 to 30/4/22,26/07/2023,0183012,"2,209.12",Revenue,E.On,21330
Chorley Borough Council,http://statistics.data.gov.uk/id/local-authority/30UE,Culture & Heritage,1036,GOVN - Policy & Governance,Souvenirs,40033,"Equipment, Furniture & Materia",5023,"The Hemlock Cure x 2, Entangled Life x 2, Visitor`s guide to NAME REDACTED x 2, Lancashire 40 Favourite walks x 10, Hubbub:Filth No",12/07/2023,0182475,612.70,Revenue,Ebb and Flo Bookshop,67239
Chorley Borough Council,http://statistics.data.gov.uk/id/local-authority/30UE,Economic Development,1096,GROW - Commercial Services,Electricity,20013,Energy Costs,5006,"671178450184, 22 Aug 22 - 22 Nov 22",26/07/2023,0183163,"1,476.80",Revenue,EDF Energy,89413
Chorley Borough Council,http://statistics.data.gov.uk/id/local-authority/30UE,Economic Development,1096,GROW - Commercial Services,Electricity,20013,Energy Costs,5006,"671178450184, 22 Aug 22 - 22 Nov 22",26/07/2023,0183166,"1,876.99",Revenue,EDF Energy,89413
Chorley Borough Council,http://statistics.data.gov.uk/id/local-authority/30UE,Capital,Capital,PLAN - Planning & Development,Main Contractor,03007,Capital Expenditure,Capital,Design and Construction of Play Area at West Way Sports Hub in accordance with submitted tender documents.,05/07/2023,0181718,"68,884.77",Capital,eibeplay LTD,39513
Chorley Borough Council,http://statistics.data.gov.uk/id/local-authority/30UE,Homelessness,1075,GROW - Commercial Services,Laundry,40042,"Clothing, Uniforms and Laundry",5025,"In respect of Laundry services for period , 01/04/23 - 31/03/2024, For , Cotswold Supported housing, Cotswold Rd , Chorley",12/07/2023,0182373,"1,283.41",Revenue,Elis UK Ltd,20799
Chorley Borough Council,http://statistics.data.gov.uk/id/local-authority/30UE,Unapportionable Central OHeads,1009,GROW - Commercial Services,General Repairs - Reactive,20004,Repairs Maintenance & Alts,5005,"Westhoughton Road as agreed with NAME REDACTED and NAME REDACTED, EAS 2 2 262 001 REV 3 L AND AT WESTHOUGHTON ROAD, , 1. Attendance",05/07/2023,0182069,"9,426.67",Revenue,Emchia Asbestos Solutions Limited,87270
Chorley Borough Council,http://statistics.data.gov.uk/id/local-authority/30UE,Unapportionable Central OHeads,1009,GROW - Commercial Services,General Repairs - Reactive,20004,Repairs Maintenance & Alts,5005,"Westhoughton Road as agreed with NAME REDACTED and NAME REDACTED, EAS 2 2 262 001 REV 3 L AND AT WESTHOUGHTON ROAD, , 1. Attendance",26/07/2023,0183049,"3,303.33",Revenue,Emchia Asbestos Solutions Limited,87270
Chorley Borough Council,http://statistics.data.gov.uk/id/local-authority/30UE,Central Support Services,1009,CUST - Customer & Digital,IT Software - Annual Licences,40101,Communication and Computing,5028,"SLG ELA Tier 2 22,712.00",26/07/2023,0180007,"22,712.00",Revenue,ESRI (UK) Ltd,19692
Chorley Borough Council,http://statistics.data.gov.uk/id/local-authority/30UE,Recognised Cap Grants & Conts,,PLAN - Planning & Development,Contributions Parish Councils,40144,Grants and Subscriptions,5031,CIL Receipt,19/07/2023,0179755,"144,403.50",Revenue,Euxton Parish Council,16838
Chorley Borough Council,http://statistics.data.gov.uk/id/local-authority/30UE,Tourism,1039,GOVN - Policy & Governance,Professional Fees,40063,Services,5027,"A Taste of Chorley 2023 , Music in the covered market , Saturday 3 & Sunday 4 June 10am - 4pm",12/07/2023,0181249,"1,850.00",Revenue,Event Chorley,85464
Chorley Borough Council,http://statistics.data.gov.uk/id/local-authority/30UE,Central Support Services,1009,CUST - Customer & Digital,Unitary Payment(S),50009,Private Contractors,5042,Provision of waste and recycling collection services to Chorley Council for 2023/24,26/07/2023,0182604,"217,732.79",Revenue,FCC Environment Services (UK) Limited,77903
Chorley Borough Council,http://statistics.data.gov.uk/id/local-authority/30UE,Tourism,1039,GOVN - Policy & Governance,Furniture - Hire,40013,"Equipment, Furniture & Materia",5023,Marquee - Rental 75% Final Balance Payment,12/07/2023,0181461,"44,176.87",Revenue,Field and Lawn Ltd,74977
Chorley Borough Council,http://statistics.data.gov.uk/id/local-authority/30UE,Tourism,1039,GOVN - Policy & Governance,Furniture - Hire,40013,"Equipment, Furniture & Materia",5023,Uplift of Trade stands and additional Entrance Conical,12/07/2023,0182430,"1,172.81",Revenue,Field and Lawn Ltd,74977
Chorley Borough Council,http://statistics.data.gov.uk/id/local-authority/30UE,Central Support Services,1009,EARL - Communities,Children's Activities,40188,Miscellaneous Expenses,5034,Delivery of Chorley HAF Programme Summer 23 as per grant agreement,19/07/2023,0182808,"6,144.00",Revenue,First Kick Coaching,89305
Chorley Borough Council,http://statistics.data.gov.uk/id/local-authority/30UE,Parking Services,1066,GROW - Commercial Services,External Contractors,50008,Private Contractors,5042,Provision of the maintenance contract No UK5-361 for 23 machines across various locations in Chorley for the period of 01.07.23 -,12/07/2023,0181721,"17,815.04",Revenue,Flow Bird Smart City UK Ltd,16279
Chorley Borough Council,http://statistics.data.gov.uk/id/local-authority/30UE,Tourism,1039,GOVN - Policy & Governance,Professional Fees,40063,Services,5027,CFS 2023,19/07/2023,0182734,"1,500.00",Revenue,Flowers North West,89368
Chorley Borough Council,http://statistics.data.gov.uk/id/local-authority/30UE,Homelessness,1075,EARL - Communities,Grants - Tenant Participation,40142,Grants and Subscriptions,5031,,19/07/2023,0182780,500.00,Revenue,Francis Marsden,85643
Chorley Borough Council,http://statistics.data.gov.uk/id/local-authority/30UE,Homelessness,1075,EARL - Communities,Grants - Tenant Participation,40142,Grants and Subscriptions,5031,,19/07/2023,0182767,500.00,Revenue,Gary MacFarlane,85416
Chorley Borough Council,http://statistics.data.gov.uk/id/local-authority/30UE,Homelessness,1075,EARL - Communities,Grants - Tenant Participation,40142,Grants and Subscriptions,5031,,19/07/2023,0182768,500.00,Revenue,Georgia Louise Cann,85496
Chorley Borough Council,http://statistics.data.gov.uk/id/local-authority/30UE,Homelessness,1075,EARL - Communities,Grants - Tenant Participation,40142,Grants and Subscriptions,5031,,19/07/2023,0182771,500.00,Revenue,Gillian Partington,85419
Chorley Borough Council,http://statistics.data.gov.uk/id/local-authority/30UE,Capital,Capital,GROW - Commercial Services,Consultants Fees,03025,Capital Expenditure,Capital,Bengal Street Depot Re-Provision Works,12/07/2023,0181793,"2,518.90",Capital,Gilling Dod,72454
Chorley Borough Council,http://statistics.data.gov.uk/id/local-authority/30UE,Service Management & Support,1009,CUST - Customer & Digital,Hire Of Vehicles and Plant,30028,Contrct Hire & Operating Lease,5018,"Extension of the sweepers, 12 month Contract - Start date 02/09/22, , NAME REDACTED CN101 (VIN REDACTED) � contract hire only - 1,290.17 ",12/07/2023,0182062,"8,332.30",Revenue,Go Plant Fleet Services Ltd,80857
Chorley Borough Council,http://statistics.data.gov.uk/id/local-authority/30UE,Central Support Services,1009,EARL - Communities,Tools & Equipment - Purchase,40003,"Equipment, Furniture & Materia",5023,"Equipment for NAME REDACTED -, NAME REDACTED On without PSU (champagne), NAME REDACTED (03) (champagne)",12/07/2023,0182341,704.54,Revenue,Gordon Morris,89204
Chorley Borough Council,http://statistics.data.gov.uk/id/local-authority/30UE,Central Support Services,1009,PLAN - Planning & Development,Vandalism Repairs,20005,Repairs Maintenance & Alts,5005,Graffiti removal contract April 2023 ongoing,12/07/2023,0182246,550.00,Revenue,Graffiti Away Ltd,78340
Chorley Borough Council,http://statistics.data.gov.uk/id/local-authority/30UE,Central Support Services,1009,PLAN - Planning & Development,Vandalism Repairs,20005,Repairs Maintenance & Alts,5005,Graffiti removal contract April 2023 ongoing,19/07/2023,0182805,"1,045.00",Revenue,Graffiti Away Ltd,78340
Chorley Borough Council,http://statistics.data.gov.uk/id/local-authority/30UE,Economic Development,1096,GROW - Commercial Services,Computer Consumables,40099,Communication and Computing,5028,"24 x VM43538 Verbatim Dvd-R 16X W Printable spindle 25 @ 12.50 each = 300.00, , 24 x KF02210 Q-Connect Cd Jewel Case Slim Blk P",12/07/2023,0181638,563.76,Revenue,Grafton Projects Limited,76545
Chorley Borough Council,http://statistics.data.gov.uk/id/local-authority/30UE,Corporate Management,1008,GROW - Commercial Services,Publicity - Advertising,40157,Miscellaneous Expenses,5034,"Social media for Market Walk Shopping Centre Chorley., , July 23 @ 500 per month",12/07/2023,0182428,500.00,Revenue,Gravity,77837
Chorley Borough Council,http://statistics.data.gov.uk/id/local-authority/30UE,Other Short Term Creditors,,GOVN - Policy & Governance,General Balances,00100,Balance Sheet,Balance,P11D Class 1A NIC`s,19/07/2023,0182851,"26,130.41",Revenue,H M Revenue & Customs Only P11D,21264
Chorley Borough Council,http://statistics.data.gov.uk/id/local-authority/30UE,Corporate Management,1008,EARL - Communities,Other Contributions,40145,Grants and Subscriptions,5031,Household Support Fund 4 - 1st payment 50% including 1000 admin,05/07/2023,0182266,"11,000.00",Revenue,Help The Homeless (Chorley),16716
Chorley Borough Council,http://statistics.data.gov.uk/id/local-authority/30UE,Capital,Capital,GOVN - Policy & Governance,Purchase Money,03027,Capital Expenditure,Capital,"SDLT due on purchase, ADDRESS REDACTED",12/07/2023,0182120,"4,500.00",Capital,HM Revenue & Customs,56499
Chorley Borough Council,http://statistics.data.gov.uk/id/local-authority/30UE,Capital,Capital,GOVN - Policy & Governance,Purchase Money,03027,Capital Expenditure,Capital,"SDLT, ADDRESS REDACTED",19/07/2023,0182659,"4,049.00",Capital,HM Revenue & Customs,56499
Chorley Borough Council,http://statistics.data.gov.uk/id/local-authority/30UE,Corporate Management,1008,EARL - Communities,Other Contributions,40145,Grants and Subscriptions,5031,Household Support Fund 4 - 1st Payment,05/07/2023,0182080,"20,000.00",Revenue,Home-Start Central Lancashire Ltd,20585
Chorley Borough Council,http://statistics.data.gov.uk/id/local-authority/30UE,Central Support Services,1009,CUST - Customer & Digital,Telephones - Other,40085,Communication and Computing,5028,Hybrit SIP charges April 23,05/07/2023,0180069,747.50,Revenue,Hybrit LLP,77925
Chorley Borough Council,http://statistics.data.gov.uk/id/local-authority/30UE,Central Support Services,1009,CUST - Customer & Digital,Telephones - Other,40085,Communication and Computing,5028,Hybrit SIP charges May 23,05/07/2023,0180597,978.83,Revenue,Hybrit LLP,77925
Chorley Borough Council,http://statistics.data.gov.uk/id/local-authority/30UE,Central Support Services,1009,CUST - Customer & Digital,IT Consultancy Fees,40223,Services,5027,"Senior Technical Consultants -Infrastructure 2 x 750.00 1,500.00, Project Manager 1650.00, Total 2,150.00",05/07/2023,0180832,"2,150.00",Revenue,Hybrit LLP,77925
Chorley Borough Council,http://statistics.data.gov.uk/id/local-authority/30UE,Central Support Services,1009,CUST - Customer & Digital,Computer Equipment - Security,40106,Communication and Computing,5028,"Apple USB-C Charge Cable - 2M 30 14.13 423.90, 2, LOGITECH FOLIO TOUCH KEYBOARD, CASE WITH TRACKPAD FOR IPAD AIR 4TH, GEN, 30 �",05/07/2023,0180994,"6,186.29",Revenue,Hybrit LLP,77925
Chorley Borough Council,http://statistics.data.gov.uk/id/local-authority/30UE,Central Support Services,1009,CUST - Customer & Digital,Computer Software-Maintenance,40107,Communication and Computing,5028,"HAL00010	Eros network licence - Annual support & maintenance	1	 6,775.25	6,775.25 HAL00019	LLPG interface - Annual support	1	 �",05/07/2023,0179923,"11,719.70",Revenue,IDOX Software Limited,17542
Chorley Borough Council,http://statistics.data.gov.uk/id/local-authority/30UE,Capital,Capital,EARL - Communities,Grants,03002,Capital Expenditure,Capital,23/00134/CAG,26/07/2023,0183132,"3,863.56",Capital,Independent Adaptations Ltd,77973
Chorley Borough Council,http://statistics.data.gov.uk/id/local-authority/30UE,Central Support Services,1009,CUST - Customer & Digital,Computer - Support Services,40111,Communication and Computing,5028,2023-24 membership renewal for Chorley Borough Council,05/07/2023,0180262,"2,410.00",Revenue,iNetwork (Tameside Council),19554
Chorley Borough Council,http://statistics.data.gov.uk/id/local-authority/30UE,Other Short Term Creditors,,GOVN - Policy & Governance,General Balances,00100,Balance Sheet,Balance,Tax HMRC - May 23 Elections Deductions from Payroll,12/07/2023,0182580,"12,572.20",Revenue,Inland Revenue 065/CH1094A,77147
Chorley Borough Council,http://statistics.data.gov.uk/id/local-authority/30UE,Homelessness,1075,EARL - Communities,Rental Bond Scheme,40241,Miscellaneous Expenses,5034,HFU Rental Bonds Scheme,05/07/2023,0182123,"1,725.00",Revenue,Iryna Kucher,89345
Chorley Borough Council,http://statistics.data.gov.uk/id/local-authority/30UE,Community Development,1097,GROW - Commercial Services,Rent/Hire Of Premises,20017,Premises Rents,5007,Annual Rent for ADDRESS REDACTED,05/07/2023,0181794,"7,218.75",Revenue,J R Keys,17124
Chorley Borough Council,http://statistics.data.gov.uk/id/local-authority/30UE,Homelessness,1075,EARL - Communities,Grants - Tenant Participation,40142,Grants and Subscriptions,5031,,19/07/2023,0182790,500.00,Revenue,Jason O`Flaherty,85502
Chorley Borough Council,http://statistics.data.gov.uk/id/local-authority/30UE,Democratic Represent and  Mgnt,1007,CUST - Customer & Digital,Supplies-Grounds Maintenance,40025,"Equipment, Furniture & Materia",5023,60 @ 4.2m x 100mm x38mm Green timber,12/07/2023,0181901,516.00,Revenue,John H Mayor & Sons Ltd,16635
Chorley Borough Council,http://statistics.data.gov.uk/id/local-authority/30UE,Tourism,1039,GOVN - Policy & Governance,Professional Fees,40063,Services,5027,"Trophies for the Chorley Flower Show 2023., , 9 x CR7106B @ 38.00 = 342.00, 3 x JB4005C @ 95.00 = 285.00, 1 x LCG3A @ 172.50",12/07/2023,0181380,666.25,Revenue,John Harrison Sports,17470
Chorley Borough Council,http://statistics.data.gov.uk/id/local-authority/30UE,Capital,Capital,PLAN - Planning & Development,Main Contractor,03007,Capital Expenditure,Capital,Construction of a Sports Pavilion at Wigan Lane Playing Fields with associated infrastructure and landscaping as set out in the t,05/07/2023,0180820,"145,138.43",Capital,John Wade Groundworks Ltd,76676
Chorley Borough Council,http://statistics.data.gov.uk/id/local-authority/30UE,Homelessness,1075,EARL - Communities,Grants - Tenant Participation,40142,Grants and Subscriptions,5031,,19/07/2023,0182770,500.00,Revenue,Joyce Harasimiuk,85418
Chorley Borough Council,http://statistics.data.gov.uk/id/local-authority/30UE,Central Support Services,1009,EARL - Communities,Children's Activities,40188,Miscellaneous Expenses,5034,Provision of activity and food for Chorley HAF programme summer 23 as per agreement,19/07/2023,0182765,500.00,Revenue,K Leisure Ltd,78259
Chorley Borough Council,http://statistics.data.gov.uk/id/local-authority/30UE,Economic Development,1096,GROW - Commercial Services,Refuse Collection,20037,Cleaning and Domestic Supplies,5012,"Market Walk/Market Walk Extension/Markets/Calico Lounge/Reel Cinema Waste Removal 01.04.2023 - 31.03.2024:, , Market Walk YARD 1 ",12/07/2023,0182520,"1,989.00",Revenue,Kenny Waste Management Ltd,88641
Chorley Borough Council,http://statistics.data.gov.uk/id/local-authority/30UE,Control Accounts,Control,GOVN - Policy & Governance,General Balances,00100,Balance Sheet,Balance,Labour Councillors Association - June 23 Monthly Deductions from Payroll,12/07/2023,0182568,"1,306.42",Revenue,Labour Councillors Association,17577
Chorley Borough Council,http://statistics.data.gov.uk/id/local-authority/30UE,Central Support Services,1009,GOVN - Policy & Governance,Misc Employee Costs,18001,Indirect Employee Expenses,5002,P.G Uplift as part of Chorley Reform 19-20 Full Year,26/07/2023,0183079,"6,426.05",Revenue,Lancashire and South Cumbria NHS Foundation Trust,57492
Chorley Borough Council,http://statistics.data.gov.uk/id/local-authority/30UE,Corporate Management,1008,EARL - Communities,Other Contributions,40145,Grants and Subscriptions,5031,Household Support Fund 4 - Supermarket vouchers,12/07/2023,0182476,"38,250.00",Revenue,Lancashire County Council,17758
Chorley Borough Council,http://statistics.data.gov.uk/id/local-authority/30UE,Capital,Capital,EARL - Communities,Grants,03002,Capital Expenditure,Capital,23/00085/CAG,19/07/2023,0182736,"2,990.40",Capital,Lancashire County Council,17758
Chorley Borough Council,http://statistics.data.gov.uk/id/local-authority/30UE,Capital,Capital,EARL - Communities,Grants,03002,Capital Expenditure,Capital,23/00040/CAG,19/07/2023,0182739,"8,432.36",Capital,Lancashire County Council,17758
Chorley Borough Council,http://statistics.data.gov.uk/id/local-authority/30UE,Central Support Services,1009,CUST - Customer & Digital,Clinical Waste Collection,50007,Private Contractors,5042,Domestic clinical waste collections 2023/24,26/07/2023,0182766,"1,904.93",Revenue,Lancashire Environmental Services,82309
Chorley Borough Council,http://statistics.data.gov.uk/id/local-authority/30UE,Corporate Management,1008,GOVN - Policy & Governance,Refreshments,40036,Catering,5024,It�s All About Us � CH Catering,26/07/2023,0182832,"1,237.91",Revenue,Lancashire Fayre,17761
Chorley Borough Council,http://statistics.data.gov.uk/id/local-authority/30UE,Corporate Management,1008,GOVN - Policy & Governance,Refreshments,40036,Catering,5024,It�s All About Us � SR Catering,26/07/2023,0182833,864.86,Revenue,Lancashire Fayre,17761
Chorley Borough Council,http://statistics.data.gov.uk/id/local-authority/30UE,Unapportionable Central OHeads,1009,GROW - Commercial Services,General Repairs - Reactive,20004,Repairs Maintenance & Alts,5005,"Reactive Gas, Air Conditioning and Plumbing Repair Works @ CBC Housing",26/07/2023,0182219,506.50,Revenue,Lancashire Gas Services Ltd,78192
Chorley Borough Council,http://statistics.data.gov.uk/id/local-authority/30UE,Unapportionable Central OHeads,1009,GROW - Commercial Services,Planned Maintenance,20006,Repairs Maintenance & Alts,5005,"Planned Gas, Air Conditioning and Plumbing Maintenance and Remedial Works also includes insurance inspector remedials @ CBC Housi",26/07/2023,0182695,531.39,Revenue,Lancashire Gas Services Ltd,78192
Chorley Borough Council,http://statistics.data.gov.uk/id/local-authority/30UE,Unapportionable Central OHeads,1009,GROW - Commercial Services,Planned Maintenance,20006,Repairs Maintenance & Alts,5005,"Planned Gas, Air Conditioning and Plumbing Maintenance and Remedial Works also includes insurance inspector remedials @ Union Str",19/07/2023,0182749,"1,014.56",Revenue,Lancashire Gas Services Ltd,78192
Chorley Borough Council,http://statistics.data.gov.uk/id/local-authority/30UE,Business Support,1095,GROW - Commercial Services,General Repairs - Reactive,20004,Repairs Maintenance & Alts,5005,"Reactive Gas, Air Conditioning and Plumbing Repair Works @ Strawberry Fields",26/07/2023,0182751,"1,202.12",Revenue,Lancashire Gas Services Ltd,78192
Chorley Borough Council,http://statistics.data.gov.uk/id/local-authority/30UE,Business Support,1095,GROW - Commercial Services,Planned Maintenance,20006,Repairs Maintenance & Alts,5005,"Planned Gas, Air Conditioning and Plumbing Maintenance and Remedial Works also includes insurance inspector remedials @ Primrose ",19/07/2023,0182753,733.53,Revenue,Lancashire Gas Services Ltd,78192
Chorley Borough Council,http://statistics.data.gov.uk/id/local-authority/30UE,Unapportionable Central OHeads,1009,GROW - Commercial Services,General Repairs - Reactive,20004,Repairs Maintenance & Alts,5005,"Reactive Gas, Air Conditioning and Plumbing Repair Works @ Cotswold House",26/07/2023,0182755,581.48,Revenue,Lancashire Gas Services Ltd,78192
Chorley Borough Council,http://statistics.data.gov.uk/id/local-authority/30UE,Service Management & Support,1009,CUST - Customer & Digital,Vehicles and Plant Maintenance,30045,Direct Transport Costs,5016,"CUSTOMER JOB NO. 7652, Description, VIN REDACTED - Full Service of vehicle, - Carry out service, - Changed engine oil and filter, - Ch",12/07/2023,0182315,812.25,Revenue,Lancashire Waste Services,78129
Chorley Borough Council,http://statistics.data.gov.uk/id/local-authority/30UE,Development Control,1091,PLAN - Planning & Development,Professional Fees,40063,Services,5027,"Lancashire County Council , Historic Environment Team Provision of specialist archaeological advice in respect of planning applic",19/07/2023,0182763,"5,901.00",Revenue,LCC Archaeological Advice/Joanne Smith,89206
Chorley Borough Council,http://statistics.data.gov.uk/id/local-authority/30UE,Central Support Services,1009,GROW - Commercial Services,Consultants` Fees,40077,Services,5027,Valuation Advice - Brookfield and Ingholme Euxton lane Chorley to be provided to the Council in connection with a potential claim,26/07/2023,0182911,800.00,Revenue,Lea Hough & Co LLP,76318
Chorley Borough Council,http://statistics.data.gov.uk/id/local-authority/30UE,Democratic Represent and  Mgnt,1007,GOVN - Policy & Governance,Car Leasing Payment,14100,Direct Employee Expenses,5001,OU22 RYR: Mayoral - 15 Jul 23 to 14 Jul 24,26/07/2023,0182171,"7,416.84",Revenue,Lex Autolease Ltd,70682
Chorley Borough Council,http://statistics.data.gov.uk/id/local-authority/30UE,Democratic Represent and  Mgnt,1007,GOVN - Policy & Governance,Car Leasing Payment,14100,Direct Employee Expenses,5001,VAT,26/07/2023,0182171,721.45,Revenue,Lex Autolease Ltd,70682
Chorley Borough Council,http://statistics.data.gov.uk/id/local-authority/30UE,Capital,Capital,EARL - Communities,Grants,03002,Capital Expenditure,Capital,DFG work,05/07/2023,0182129,"1,537.00",Capital,Liberata UK,20716
Chorley Borough Council,http://statistics.data.gov.uk/id/local-authority/30UE,Unapportionable Central OHeads,1009,GOVN - Policy & Governance,HR Approved Occ Health Fees,15201,Indirect Employee Expenses,5002,Counselling for staff May 2023,19/07/2023,0181796,810.00,Revenue,Livewell Counselling Service,63084
Chorley Borough Council,http://statistics.data.gov.uk/id/local-authority/30UE,Unapportionable Central OHeads,1009,GOVN - Policy & Governance,HR Approved Occ Health Fees,15201,Indirect Employee Expenses,5002,Counselling for staff June 2023,26/07/2023,0183095,675.00,Revenue,Livewell Counselling Service,63084
Chorley Borough Council,http://statistics.data.gov.uk/id/local-authority/30UE,Corporate Management,1008,EARL - Communities,Other Contributions,40145,Grants and Subscriptions,5031,Household support fund 4 - 1st payment,05/07/2023,0182081,"9,750.00",Revenue,Living Waters Storehouse,60925
Chorley Borough Council,http://statistics.data.gov.uk/id/local-authority/30UE,Homelessness,1075,EARL - Communities,Grants - Tenant Participation,40142,Grants and Subscriptions,5031,,19/07/2023,0182769,812.17,Revenue,Louise Arnold,85417
Chorley Borough Council,http://statistics.data.gov.uk/id/local-authority/30UE,Central Support Services,1009,CUST - Customer & Digital,External Contractor,40198,Miscellaneous Expenses,5034,"Modified Phase 1 - Paired Comparison Failure Investigation of Wheelie Bins at Chorley Council , Quotation Ref: Q510-2023mod1, Sta",12/07/2023,0182344,"5,005.00",Revenue,LPD Lab Services Limited,89245
Chorley Borough Council,http://statistics.data.gov.uk/id/local-authority/30UE,Central Support Services,1009,EARL - Communities,Consultants` Fees,40077,Services,5027,Annual Subscription for ASB Consultancy fees,19/07/2023,0181092,"1,580.00",Revenue,Mallard Consultancy LTD,76458
Chorley Borough Council,http://statistics.data.gov.uk/id/local-authority/30UE,Building Control,1090,PLAN - Planning & Development,Agency Staff,13000,Direct Employee Expenses,5001,Agency Fees for NAME REDACTED Building Control Officer May 2023 onwards,12/07/2023,0182203,"1,243.20",Revenue,Matchtech,77343
Chorley Borough Council,http://statistics.data.gov.uk/id/local-authority/30UE,Building Control,1090,PLAN - Planning & Development,Agency Staff,13000,Direct Employee Expenses,5001,Agency Fees for NAME REDACTED Building Control Officer May 2023 onwards,12/07/2023,0182204,"1,288.00",Revenue,Matchtech,77343
Chorley Borough Council,http://statistics.data.gov.uk/id/local-authority/30UE,Building Control,1090,PLAN - Planning & Development,Agency Staff,13000,Direct Employee Expenses,5001,Agency Fees for NAME REDACTED Building Control Officer May 2023 onwards,12/07/2023,0182479,"1,288.00",Revenue,Matchtech,77343
Chorley Borough Council,http://statistics.data.gov.uk/id/local-authority/30UE,Building Control,1090,PLAN - Planning & Development,Agency Staff,13000,Direct Employee Expenses,5001,Agency Fees for NAME REDACTED Building Control Officer May 2023 onwards,19/07/2023,0182762,"2,212.00",Revenue,Matchtech,77343
Chorley Borough Council,http://statistics.data.gov.uk/id/local-authority/30UE,Cemetery Cremation & Mortuary,1041,CUST - Customer & Digital,Interment Fees - Ashes,60257,Customer & Client Receipts,5064,Refund of grave plot,12/07/2023,0182128,534.50,Revenue,Michael Cliffe,89294
Chorley Borough Council,http://statistics.data.gov.uk/id/local-authority/30UE,Unapportionable Central OHeads,1009,GROW - Commercial Services,General Repairs - Reactive,20004,Repairs Maintenance & Alts,5005,CBC Parks Buildings Reactive Drainage and Groundworks Repair Works,19/07/2023,0179677,500.00,Revenue,Michael Roe,78294
Chorley Borough Council,http://statistics.data.gov.uk/id/local-authority/30UE,Unapportionable Central OHeads,1009,GROW - Commercial Services,General Repairs - Reactive,20004,Repairs Maintenance & Alts,5005,CBC Cemeteries Reactive Drainage and Groundworks Repair Works,19/07/2023,0179697,"2,500.00",Revenue,Michael Roe,78294
Chorley Borough Council,http://statistics.data.gov.uk/id/local-authority/30UE,Unapportionable Central OHeads,1009,GROW - Commercial Services,General Repairs - Reactive,20004,Repairs Maintenance & Alts,5005,Cotswold House Reactive Drainage and Groundworks Repair Works,19/07/2023,0179698,500.00,Revenue,Michael Roe,78294
Chorley Borough Council,http://statistics.data.gov.uk/id/local-authority/30UE,Unapportionable Central OHeads,1009,GROW - Commercial Services,General Repairs - Reactive,20004,Repairs Maintenance & Alts,5005,CBC Sports Pitches & Pavilions Reactive Drainage and Groundworks Repair Works,19/07/2023,0179699,500.00,Revenue,Michael Roe,78294
Chorley Borough Council,http://statistics.data.gov.uk/id/local-authority/30UE,Unapportionable Central OHeads,1009,GROW - Commercial Services,General Repairs - Reactive,20004,Repairs Maintenance & Alts,5005,CBC Housing Reactive Drainage and Groundworks Repair Works,19/07/2023,0179700,"1,000.00",Revenue,Michael Roe,78294
Chorley Borough Council,http://statistics.data.gov.uk/id/local-authority/30UE,Unapportionable Central OHeads,1009,GROW - Commercial Services,General Repairs - Reactive,20004,Repairs Maintenance & Alts,5005,CBC Market Reactive Drainage and Groundworks Repair Works,19/07/2023,0179701,"2,500.00",Revenue,Michael Roe,78294
Chorley Borough Council,http://statistics.data.gov.uk/id/local-authority/30UE,Unapportionable Central OHeads,1009,GROW - Commercial Services,General Repairs - Reactive,20004,Repairs Maintenance & Alts,5005,CBC Industrial Units Reactive Drainage and Groundworks Repair Works,19/07/2023,0179702,500.00,Revenue,Michael Roe,78294
Chorley Borough Council,http://statistics.data.gov.uk/id/local-authority/30UE,Unapportionable Central OHeads,1009,GROW - Commercial Services,General Repairs - Reactive,20004,Repairs Maintenance & Alts,5005,Astley Hall & Buildings Reactive Drainage and Groundworks Repair Works,19/07/2023,0179703,"3,000.00",Revenue,Michael Roe,78294
Chorley Borough Council,http://statistics.data.gov.uk/id/local-authority/30UE,Unapportionable Central OHeads,1009,GROW - Commercial Services,General Repairs - Reactive,20004,Repairs Maintenance & Alts,5005,CBC Community Centres Reactive Drainage and Groundworks Repair Works,19/07/2023,0179704,"2,000.00",Revenue,Michael Roe,78294
Chorley Borough Council,http://statistics.data.gov.uk/id/local-authority/30UE,Unapportionable Central OHeads,1009,GROW - Commercial Services,General Repairs - Reactive,20004,Repairs Maintenance & Alts,5005,CBC Commercial Properties Reactive Drainage and Groundworks Repair Works,19/07/2023,0179705,"1,000.00",Revenue,Michael Roe,78294
Chorley Borough Council,http://statistics.data.gov.uk/id/local-authority/30UE,Unapportionable Central OHeads,1009,GROW - Commercial Services,General Repairs - Reactive,20004,Repairs Maintenance & Alts,5005,Bengal Street Reactive Drainage and Groundworks Repair Works,19/07/2023,0179706,"1,000.00",Revenue,Michael Roe,78294
Chorley Borough Council,http://statistics.data.gov.uk/id/local-authority/30UE,Unapportionable Central OHeads,1009,GROW - Commercial Services,General Repairs - Reactive,20004,Repairs Maintenance & Alts,5005,Union Street Reactive Drainage and Groundworks Repair Works,19/07/2023,0179707,500.00,Revenue,Michael Roe,78294
Chorley Borough Council,http://statistics.data.gov.uk/id/local-authority/30UE,Unapportionable Central OHeads,1009,GROW - Commercial Services,General Repairs - Reactive,20004,Repairs Maintenance & Alts,5005,Town Hall Reactive Drainage and Groundworks Repair Works,19/07/2023,0179708,500.00,Revenue,Michael Roe,78294
Chorley Borough Council,http://statistics.data.gov.uk/id/local-authority/30UE,Unapportionable Central OHeads,1009,GROW - Commercial Services,General Repairs - Reactive,20004,Repairs Maintenance & Alts,5005,CBC Car Parks Reactive Drainage and Groundworks Repair Works,19/07/2023,0179709,"2,000.00",Revenue,Michael Roe,78294
Chorley Borough Council,http://statistics.data.gov.uk/id/local-authority/30UE,Business Support,1095,GROW - Commercial Services,General Repairs - Reactive,20004,Repairs Maintenance & Alts,5005,Strawberry Fields Reactive Drainage and Groundworks Repair Works,19/07/2023,0179710,"1,000.00",Revenue,Michael Roe,78294
Chorley Borough Council,http://statistics.data.gov.uk/id/local-authority/30UE,Business Support,1095,GROW - Commercial Services,General Repairs - Reactive,20004,Repairs Maintenance & Alts,5005,Primrose Gardens Reactive Drainage and Groundworks Repair Works,19/07/2023,0180096,500.00,Revenue,Michael Roe,78294
Chorley Borough Council,http://statistics.data.gov.uk/id/local-authority/30UE,Business Support,1095,GROW - Commercial Services,General Repairs - Reactive,20004,Repairs Maintenance & Alts,5005,Market Walk Reactive Drainage and Groundworks Repair Works,19/07/2023,0180098,"15,000.00",Revenue,Michael Roe,78294
Chorley Borough Council,http://statistics.data.gov.uk/id/local-authority/30UE,Unapportionable Central OHeads,1009,GROW - Commercial Services,General Repairs - Reactive,20004,Repairs Maintenance & Alts,5005,"Union St, Reactive Drainage and Groundworks Repair Works",19/07/2023,0181802,"1,150.00",Revenue,Michael Roe,78294
Chorley Borough Council,http://statistics.data.gov.uk/id/local-authority/30UE,Unapportionable Central OHeads,1009,GROW - Commercial Services,General Repairs - Reactive,20004,Repairs Maintenance & Alts,5005,"Cemeteries, Reactive Drainage and Groundworks Repair Works",19/07/2023,0182088,820.00,Revenue,Michael Roe,78294
Chorley Borough Council,http://statistics.data.gov.uk/id/local-authority/30UE,Homelessness,1075,EARL - Communities,Grants - Tenant Participation,40142,Grants and Subscriptions,5031,,19/07/2023,0182788,500.00,Revenue,Michelle Brown,87062
Chorley Borough Council,http://statistics.data.gov.uk/id/local-authority/30UE,Capital,Capital,EARL - Communities,Grants,03002,Capital Expenditure,Capital,ADDRESS REDACTED,12/07/2023,0182497,"6,047.30",Capital,Mint Northwest Ltd,65607
Chorley Borough Council,http://statistics.data.gov.uk/id/local-authority/30UE,Capital,Capital,EARL - Communities,Grants,03002,Capital Expenditure,Capital,"22/00160/CAG, ADDRESS REDACTED",19/07/2023,0182656,"6,267.42",Capital,Mint Northwest Ltd,65607
Chorley Borough Council,http://statistics.data.gov.uk/id/local-authority/30UE,Capital,Capital,EARL - Communities,Grants,03002,Capital Expenditure,Capital,23/00009/CAG,19/07/2023,0182737,"5,926.27",Capital,Mint Northwest Ltd,65607
Chorley Borough Council,http://statistics.data.gov.uk/id/local-authority/30UE,Capital,Capital,EARL - Communities,Grants,03002,Capital Expenditure,Capital,22/00153/CAG,19/07/2023,0182738,"8,641.21",Capital,Mint Northwest Ltd,65607
Chorley Borough Council,http://statistics.data.gov.uk/id/local-authority/30UE,Capital,Capital,EARL - Communities,Grants,03002,Capital Expenditure,Capital,ADDRESS REDACTED,26/07/2023,0182811,"7,650.49",Capital,Mint Northwest Ltd,65607
Chorley Borough Council,http://statistics.data.gov.uk/id/local-authority/30UE,Capital,Capital,EARL - Communities,Grants,03002,Capital Expenditure,Capital,ADDRESS REDACTED,26/07/2023,0182816,"5,885.89",Capital,Mint Northwest Ltd,65607
Chorley Borough Council,http://statistics.data.gov.uk/id/local-authority/30UE,Capital,Capital,EARL - Communities,Grants,03002,Capital Expenditure,Capital,ADDRESS REDACTED,26/07/2023,0182819,"6,046.29",Capital,Mint Northwest Ltd,65607
Chorley Borough Council,http://statistics.data.gov.uk/id/local-authority/30UE,Capital,Capital,EARL - Communities,Grants,03002,Capital Expenditure,Capital,ADDRESS REDACTED,26/07/2023,0182821,"6,062.77",Capital,Mint Northwest Ltd,65607
Chorley Borough Council,http://statistics.data.gov.uk/id/local-authority/30UE,Private Sector HSG Renewal,1073,EARL - Communities,External Contractor,40198,Miscellaneous Expenses,5034,Ref 200677,19/07/2023,0182822,720.00,Revenue,Mobility Care Services,70841
Chorley Borough Council,http://statistics.data.gov.uk/id/local-authority/30UE,Private Sector HSG Renewal,1073,EARL - Communities,External Contractor,40198,Miscellaneous Expenses,5034,Ref 200717,19/07/2023,0182822,600.00,Revenue,Mobility Care Services,70841
Chorley Borough Council,http://statistics.data.gov.uk/id/local-authority/30UE,Capital,Capital,EARL - Communities,Grants,03002,Capital Expenditure,Capital,"22/00182/CAG, NAME REDACTED, ADDRESS REDACTED",19/07/2023,0182864,"1,170.00",Capital,Mobility Care Services,70841
Chorley Borough Council,http://statistics.data.gov.uk/id/local-authority/30UE,Central Support Services,1009,GOVN - Policy & Governance,Other Licence Fees,40231,Miscellaneous Expenses,5034,"MPLC Umbrella Licence covering the term 11/6/23 to 16/6/24, cust no : MPLCUK13649, invoice number 632690",26/07/2023,0182918,"4,479.09",Revenue,Motion Picture Licensing Company Limited,65600
Chorley Borough Council,http://statistics.data.gov.uk/id/local-authority/30UE,Development Control,1091,PLAN - Planning & Development,Legal Fees,40171,Miscellaneous Expenses,5034,"Kings Chambers (NAME REDACTED), Legal advice on the policy situation as regards a current planning application for housing developme",19/07/2023,0182593,"1,500.00",Revenue,Mr Ian Ponter,19968
Chorley Borough Council,http://statistics.data.gov.uk/id/local-authority/30UE,Control Accounts,Control,GROW - Commercial Services,Manual Control Account,00001,Balance Sheet,Balance,,12/07/2023,0182367,"3,870.00",Revenue,MRS P V DAVIS,88567
Chorley Borough Council,http://statistics.data.gov.uk/id/local-authority/30UE,Culture & Heritage,1036,GOVN - Policy & Governance,Publicity - Advertising,40157,Miscellaneous Expenses,5034,"Title: 10PP 99 X 210MM ASTLEY LEAFLET, Size: 99 x 210mm, Artwork: From Press-Ready PDF Supplied with all ticks and bleeds.., Proo",05/07/2023,0182094,"2,153.00",Revenue,N B Colour Print Ltd,17917
Chorley Borough Council,http://statistics.data.gov.uk/id/local-authority/30UE,Development Control,1091,PLAN - Planning & Development,Statutory Notices,40160,Miscellaneous Expenses,5034,Planning Public Notices to appear in the Chorley Guardian April 2023 to March 2024,05/07/2023,0182065,506.10,Revenue,National World Publishing Limited,20072
Chorley Borough Council,http://statistics.data.gov.uk/id/local-authority/30UE,Development Control,1091,PLAN - Planning & Development,Statutory Notices,40160,Miscellaneous Expenses,5034,Planning Public Notices to appear in the Chorley Guardian April 2023 to March 2024,19/07/2023,0182696,521.22,Revenue,National World Publishing Limited,20072
Chorley Borough Council,http://statistics.data.gov.uk/id/local-authority/30UE,Homelessness,1075,EARL - Communities,Grants - Tenant Participation,40142,Grants and Subscriptions,5031,,19/07/2023,0182789,500.00,Revenue,Nicholas J Roden,87102
Chorley Borough Council,http://statistics.data.gov.uk/id/local-authority/30UE,Central Support Services,1009,CUST - Customer & Digital,Computer Equipment-Purchase,40098,Communication and Computing,5028,30 CAT phones,19/07/2023,0176651,"1,320.00",Revenue,Node 4,20541
Chorley Borough Council,http://statistics.data.gov.uk/id/local-authority/30UE,Democratic Represent and  Mgnt,1007,GROW - Commercial Services,Electricity,20013,Energy Costs,5006,All seasons,05/07/2023,0181817,"18,770.79",Revenue,Npower Commercial Gas,16814
Chorley Borough Council,http://statistics.data.gov.uk/id/local-authority/30UE,Business Support,1095,GROW - Commercial Services,Electricity,20013,Energy Costs,5006,Strawberry Fields Digital Hub,05/07/2023,0182154,"8,296.82",Revenue,Npower Commercial Gas,16814
Chorley Borough Council,http://statistics.data.gov.uk/id/local-authority/30UE,Business Support,1095,GROW - Commercial Services,Electricity,20013,Energy Costs,5006,Strawberry Fields digital hub,05/07/2023,0182155,"7,921.04",Revenue,Npower Commercial Gas,16814
Chorley Borough Council,http://statistics.data.gov.uk/id/local-authority/30UE,Recreation & Sport,1037,GROW - Commercial Services,Electricity,20013,Energy Costs,5006,Main pannel tatton gardens,05/07/2023,0182161,"13,525.49",Revenue,Npower Commercial Gas,16814
Chorley Borough Council,http://statistics.data.gov.uk/id/local-authority/30UE,Business Support,1095,GROW - Commercial Services,Electricity,20013,Energy Costs,5006,Unit 30 Strawberry Meadows,05/07/2023,0182162,982.08,Revenue,Npower Commercial Gas,16814
Chorley Borough Council,http://statistics.data.gov.uk/id/local-authority/30UE,Central Support Services,1009,GROW - Commercial Services,Electricity,20013,Energy Costs,5006,"HD46223B, 01 Apr 23 - 30 Apr 23",12/07/2023,0182447,"1,597.86",Revenue,Npower Commercial Gas,16814
Chorley Borough Council,http://statistics.data.gov.uk/id/local-authority/30UE,Open Spaces,1038,GROW - Commercial Services,Electricity,20013,Energy Costs,5006,"HD460027, 01 Mar 23 - 31 Mar 23",12/07/2023,0182450,968.25,Revenue,Npower Commercial Gas,16814
Chorley Borough Council,http://statistics.data.gov.uk/id/local-authority/30UE,Recreation & Sport,1037,GROW - Commercial Services,Electricity,20013,Energy Costs,5006,"A0010276408, 01 Apr 23 - 30 Apr 23",12/07/2023,0182455,"13,479.94",Revenue,Npower Commercial Gas,16814
Chorley Borough Council,http://statistics.data.gov.uk/id/local-authority/30UE,Parking Services,1066,GROW - Commercial Services,Electricity,20013,Energy Costs,5006,1/4 to 30/4/23,12/07/2023,0182501,770.56,Revenue,Npower Commercial Gas,16814
Chorley Borough Council,http://statistics.data.gov.uk/id/local-authority/30UE,Recreation & Sport,1037,GROW - Commercial Services,Electricity,20013,Energy Costs,5006,1/4 to 30/4/23,12/07/2023,0182524,"3,036.07",Revenue,Npower Commercial Gas,16814
Chorley Borough Council,http://statistics.data.gov.uk/id/local-authority/30UE,Democratic Represent and  Mgnt,1007,GROW - Commercial Services,Electricity,20013,Energy Costs,5006,Eaves lane GP surgery,12/07/2023,0182531,548.01,Revenue,Npower Commercial Gas,16814
Chorley Borough Council,http://statistics.data.gov.uk/id/local-authority/30UE,Democratic Represent and  Mgnt,1007,GROW - Commercial Services,Electricity,20013,Energy Costs,5006,Astley park changing rooms,12/07/2023,0182533,"1,101.53",Revenue,Npower Commercial Gas,16814
Chorley Borough Council,http://statistics.data.gov.uk/id/local-authority/30UE,Business Support,1095,GROW - Commercial Services,Electricity,20013,Energy Costs,5006,Landlord communal area,12/07/2023,0182535,"1,672.35",Revenue,Npower Commercial Gas,16814
Chorley Borough Council,http://statistics.data.gov.uk/id/local-authority/30UE,Democratic Represent and  Mgnt,1007,GROW - Commercial Services,Electricity,20013,Energy Costs,5006,Astley farm,12/07/2023,0182536,622.34,Revenue,Npower Commercial Gas,16814
Chorley Borough Council,http://statistics.data.gov.uk/id/local-authority/30UE,Recreation & Sport,1037,GROW - Commercial Services,Electricity,20013,Energy Costs,5006,Brinscall baths,12/07/2023,0182540,"2,783.14",Revenue,Npower Commercial Gas,16814
Chorley Borough Council,http://statistics.data.gov.uk/id/local-authority/30UE,Democratic Represent and  Mgnt,1007,GROW - Commercial Services,Electricity,20013,Energy Costs,5006,All seasons,12/07/2023,0182542,"17,984.66",Revenue,Npower Commercial Gas,16814
Chorley Borough Council,http://statistics.data.gov.uk/id/local-authority/30UE,Parking Services,1066,GROW - Commercial Services,Electricity,20013,Energy Costs,5006,Car park union street,12/07/2023,0182545,"3,655.51",Revenue,Npower Commercial Gas,16814
Chorley Borough Council,http://statistics.data.gov.uk/id/local-authority/30UE,Parking Services,1066,GROW - Commercial Services,Electricity,20013,Energy Costs,5006,Oak house car park,12/07/2023,0182547,"1,342.65",Revenue,Npower Commercial Gas,16814
Chorley Borough Council,http://statistics.data.gov.uk/id/local-authority/30UE,Homelessness,1075,GROW - Commercial Services,Electricity,20013,Energy Costs,5006,cotswold hse communal rooms,12/07/2023,0182548,"1,563.67",Revenue,Npower Commercial Gas,16814
Chorley Borough Council,http://statistics.data.gov.uk/id/local-authority/30UE,Homelessness,1075,GROW - Commercial Services,Electricity,20013,Energy Costs,5006,Cotswold hse two storey wing,12/07/2023,0182551,609.77,Revenue,Npower Commercial Gas,16814
Chorley Borough Council,http://statistics.data.gov.uk/id/local-authority/30UE,Open Spaces,1038,GROW - Commercial Services,Electricity,20013,Energy Costs,5006,King george,12/07/2023,0182553,532.93,Revenue,Npower Commercial Gas,16814
Chorley Borough Council,http://statistics.data.gov.uk/id/local-authority/30UE,Democratic Represent and  Mgnt,1007,GROW - Commercial Services,Electricity,20013,Energy Costs,5006,Astley hall coach house,12/07/2023,0182556,"3,049.76",Revenue,Npower Commercial Gas,16814
Chorley Borough Council,http://statistics.data.gov.uk/id/local-authority/30UE,Central Support Services,1009,GROW - Commercial Services,Electricity,20013,Energy Costs,5006,"HD460039, 01 Jul 21 - 30 Sep 21",19/07/2023,0182667,944.74,Revenue,Npower Commercial Gas,16814
Chorley Borough Council,http://statistics.data.gov.uk/id/local-authority/30UE,Central Support Services,1009,GROW - Commercial Services,Electricity,20013,Energy Costs,5006,"HD460039, 01 Oct 22 - 31 Dec 22",19/07/2023,0182669,"2,049.20",Revenue,Npower Commercial Gas,16814
Chorley Borough Council,http://statistics.data.gov.uk/id/local-authority/30UE,Parking Services,1066,GROW - Commercial Services,External Contractors,50008,Private Contractors,5042,"Provision of off street car park enforcement for period 01.04.23 - 31.03.24, , Rate: 18.40 ph, , Monday - Saturday Parking Atten",12/07/2023,0182466,"4,452.80",Revenue,NSL Limited,67253
Chorley Borough Council,http://statistics.data.gov.uk/id/local-authority/30UE,Capital,Capital,GROW - Commercial Services,Main Contractor,03007,Capital Expenditure,Capital,"Form opening and fit fire damper in the Town Hall Server Room. Additionally, carry out fire stopping works around the damper.Work",05/07/2023,0182057,"4,372.60",Capital,Optimum commercial interiors,87262
Chorley Borough Council,http://statistics.data.gov.uk/id/local-authority/30UE,Capital,Capital,GROW - Commercial Services,Main Contractor,03007,Capital Expenditure,Capital,Labour,05/07/2023,0182057,"1,310.00",Capital,Optimum commercial interiors,87262
Chorley Borough Council,http://statistics.data.gov.uk/id/local-authority/30UE,Business Support,1095,GROW - Commercial Services,Electricity,20013,Energy Costs,5006,"1384403, 19 Mar 21 - 25 Jan 22",26/07/2023,0182523,782.14,Revenue,Opus Energy Ltd,65093
Chorley Borough Council,http://statistics.data.gov.uk/id/local-authority/30UE,Business Support,1095,GROW - Commercial Services,Electricity,20013,Energy Costs,5006,"1466444, 24 Apr 22 - 15 Aug 22",26/07/2023,0183122,"1,102.20",Revenue,Opus Energy Ltd,65093
Chorley Borough Council,http://statistics.data.gov.uk/id/local-authority/30UE,Business Support,1095,GROW - Commercial Services,Electricity,20013,Energy Costs,5006,"1466444, 16 Aug 22 - 30 Sep 22",26/07/2023,0183124,689.20,Revenue,Opus Energy Ltd,65093
Chorley Borough Council,http://statistics.data.gov.uk/id/local-authority/30UE,Business Support,1095,GROW - Commercial Services,Electricity,20013,Energy Costs,5006,"1466444, 01 Oct 22 - 22 Nov 22",26/07/2023,0183125,848.51,Revenue,Opus Energy Ltd,65093
Chorley Borough Council,http://statistics.data.gov.uk/id/local-authority/30UE,Business Support,1095,GROW - Commercial Services,Electricity,20013,Energy Costs,5006,"1466444, 23 Nov 22 - 23 Dec 22",26/07/2023,0183127,598.33,Revenue,Opus Energy Ltd,65093
Chorley Borough Council,http://statistics.data.gov.uk/id/local-authority/30UE,Business Support,1095,GROW - Commercial Services,Electricity,20013,Energy Costs,5006,"1466444, 24 Dec 22 - 23 Jan 23",26/07/2023,0183129,"3,221.99",Revenue,Opus Energy Ltd,65093
Chorley Borough Council,http://statistics.data.gov.uk/id/local-authority/30UE,Business Support,1095,GROW - Commercial Services,Electricity,20013,Energy Costs,5006,"1466444, 24 May 23 - 22 Jun 23",26/07/2023,0183148,540.33,Revenue,Opus Energy Ltd,65093
Chorley Borough Council,http://statistics.data.gov.uk/id/local-authority/30UE,Central Support Services,1009,GOVN - Policy & Governance,Tools & Equipment - Hire,40004,"Equipment, Furniture & Materia",5023,"PA System, Staging, video wall and two tech operators for the Freedom of the Borough event on 28 January 2023.",05/07/2023,0182119,950.00,Revenue,Paul K Sound & Vision,16607
Chorley Borough Council,http://statistics.data.gov.uk/id/local-authority/30UE,Unapportionable Central OHeads,1009,GOVN - Policy & Governance,HR Approved Occ Health Fees,15201,Indirect Employee Expenses,5002,Occupational Health Charges May 2023,19/07/2023,0181232,863.16,Revenue,People Asset Management Limited,76487
Chorley Borough Council,http://statistics.data.gov.uk/id/local-authority/30UE,Unapportionable Central OHeads,1009,GOVN - Policy & Governance,HR Approved Occ Health Fees,15201,Indirect Employee Expenses,5002,Occupational Health Charges - June 2023 - Invoice No 130158,26/07/2023,0183033,806.50,Revenue,People Asset Management Limited,76487
Chorley Borough Council,http://statistics.data.gov.uk/id/local-authority/30UE,Capital,Capital,GROW - Commercial Services,Consultants Fees,03025,Capital Expenditure,Capital,Compensation Event 010 (PM/QS),12/07/2023,0180839,"3,926.16",Capital,Perfect Circle JV Ltd,76438
Chorley Borough Council,http://statistics.data.gov.uk/id/local-authority/30UE,Capital,Capital,GROW - Commercial Services,Consultants Fees,03025,Capital Expenditure,Capital,Compensation Event 010 (PM/QS),12/07/2023,0180840,"3,926.16",Capital,Perfect Circle JV Ltd,76438
Chorley Borough Council,http://statistics.data.gov.uk/id/local-authority/30UE,Central Support Services,1009,CUST - Customer & Digital,Printing,40043,"Printing, Stationery & General",5026,Garden Waste subscription permits 2023/24,26/07/2023,0182486,922.47,Revenue,Permiserv Ltd,77202
Chorley Borough Council,http://statistics.data.gov.uk/id/local-authority/30UE,Unapportionable Central OHeads,1009,GOVN - Policy & Governance,HR Recruitment Expenses,15200,Indirect Employee Expenses,5002,Invoice No 396943,19/07/2023,0181228,588.00,Revenue,Personnel Checks Ltd,81534
Chorley Borough Council,http://statistics.data.gov.uk/id/local-authority/30UE,Development Control,1091,PLAN - Planning & Development,Legal Fees,40171,Miscellaneous Expenses,5034,"Job: Legal representation for a re-opened Planning Appeal Inquiry � Land adjacent to HMP Garth and HMP Wymott, Leyland, Lancashir",19/07/2023,0182467,"1,300.00",Revenue,Piers Riley-Smith,84151
Chorley Borough Council,http://statistics.data.gov.uk/id/local-authority/30UE,Business Support,1095,GROW - Commercial Services,Promotional Expenses,40159,Miscellaneous Expenses,5034,"2 years licence fees for Market Walk and Chorley Town Centre footfall services from 1/7/2022 to 30/6/2024, 3420 per year, Total ",12/07/2023,0182605,"3,420.00",Revenue,Place Informatics Ltd,82452
Chorley Borough Council,http://statistics.data.gov.uk/id/local-authority/30UE,Central Support Services,1009,CUST - Customer & Digital,Consultants` Fees,40077,Services,5027,Contract work to assist with planning enforcement Contractor: NAME REDACTED Time period: 1 April 2023  31 March 2024,12/07/2023,0182377,"1,083.00",Revenue,Planning and PACE Solutions Ltd,82083
Chorley Borough Council,http://statistics.data.gov.uk/id/local-authority/30UE,Other Short Term Creditors,,GOVN - Policy & Governance,General Balances,00100,Balance Sheet,Balance,Prudential - June 23 Monthly Deductions from payroll,12/07/2023,0182569,"1,500.00",Revenue,PRUDENTIAL,18178
Chorley Borough Council,http://statistics.data.gov.uk/id/local-authority/30UE,Other Short Term Creditors,,GOVN - Policy & Governance,General Balances,00100,Balance Sheet,Balance,Prudential AVC Wise - June 23 Monthly Deductions from payroll,12/07/2023,0182570,"9,090.58",Revenue,PRUDENTIAL,18178
Chorley Borough Council,http://statistics.data.gov.uk/id/local-authority/30UE,Capital,Capital,PLAN - Planning & Development,Main Contractor,03007,Capital Expenditure,Capital,Construction of Changing Facility at King George V Playing Fields. Original contract value of 939165.78 minus 84950 invoiced and ,19/07/2023,0182681,"44,046.38",Capital,Pulse Design and Build Ltd,85602
Chorley Borough Council,http://statistics.data.gov.uk/id/local-authority/30UE,Central Support Services,1009,EARL - Communities,Children's Activities,40188,Miscellaneous Expenses,5034,Provision of Chorley HAF programme summer 23 as per grant agreement,19/07/2023,0182807,"18,432.00",Revenue,Quality Sport Holiday Clubs Ltd,89304
Chorley Borough Council,http://statistics.data.gov.uk/id/local-authority/30UE,Democratic Represent and  Mgnt,1007,GOVN - Policy & Governance,Member Development Programme,17007,Indirect Employee Expenses,5002,"To provide a mini bus for Chorley Town Centre Sites Tour., Thursday 11th May 2023",05/07/2023,0181405,550.00,Revenue,R S Tyrer Ltd,16255
Chorley Borough Council,http://statistics.data.gov.uk/id/local-authority/30UE,Central Support Services,1009,EARL - Communities,Misc Expenses,40200,Miscellaneous Expenses,5034,"To manufacture, supply and install one pedestrian alley gate. Fully galvanised and powder coated black., , Price: 586.00 each, ,",26/07/2023,0182912,586.00,Revenue,REMEC Engineering Services (Burnley) Limited,83988
Chorley Borough Council,http://statistics.data.gov.uk/id/local-authority/30UE,Homelessness,1075,EARL - Communities,Grants - Tenant Participation,40142,Grants and Subscriptions,5031,,19/07/2023,0182773,500.00,Revenue,Richard Palin,85421
Chorley Borough Council,http://statistics.data.gov.uk/id/local-authority/30UE,Central Support Services,1009,CUST - Customer & Digital,Other Fees,40212,Miscellaneous Expenses,5034,Ongoing Ricoh machine rental costs shared Chorley/SRBC,05/07/2023,0181855,"6,539.71",Revenue,Ricoh UK Ltd,17126
Chorley Borough Council,http://statistics.data.gov.uk/id/local-authority/30UE,Central Support Services,1009,GROW - Commercial Services,Consultants` Fees,40077,Services,5027,Woodlands High Level Master Plan Acquisition Information Works instruction as per NAME REDACTED,12/07/2023,0181866,"2,800.00",Revenue,Ross Peedle Architecture,89074
Chorley Borough Council,http://statistics.data.gov.uk/id/local-authority/30UE,Homelessness,1075,EARL - Communities,Grants - Tenant Participation,40142,Grants and Subscriptions,5031,,19/07/2023,0182774,511.00,Revenue,Rowena Pryor,89386
Chorley Borough Council,http://statistics.data.gov.uk/id/local-authority/30UE,Elections,1012,GOVN - Policy & Governance,Postages,40082,Communication and Computing,5028,"Elections 2023 - , Sweeps, Timed Delivery, Postal vote Licence Fee, Postal vote additional selections",05/07/2023,0182072,"1,559.20",Revenue,Royal Mail Group Plc,17522
Chorley Borough Council,http://statistics.data.gov.uk/id/local-authority/30UE,Tourism,1039,GOVN - Policy & Governance,Furniture - Hire,40013,"Equipment, Furniture & Materia",5023,"Labour, , Load relevant stock warehouse, Transport to Chorley, Transport back to warehouse, Labour Build up, Labour for 4th day s",26/07/2023,0182617,"4,750.00",Revenue,RPM Events,70613
Chorley Borough Council,http://statistics.data.gov.uk/id/local-authority/30UE,Tourism,1039,GOVN - Policy & Governance,Furniture - Hire,40013,"Equipment, Furniture & Materia",5023,"Consumables, Transport and Vehicles, , Consumables, , Blue water Pipe, Blue pipe fittings, Rollers and brushes, 10 Fence stakes f",26/07/2023,0182618,"5,360.00",Revenue,RPM Events,70613
Chorley Borough Council,http://statistics.data.gov.uk/id/local-authority/30UE,Tourism,1039,GOVN - Policy & Governance,Furniture - Hire,40013,"Equipment, Furniture & Materia",5023,"Staging and Features for Chorley Flower Show , , Staging and Features	, 	, Hire Costs for staging	3,750.00, Storage of Florak ar",26/07/2023,0182619,"7,300.00",Revenue,RPM Events,70613
Chorley Borough Council,http://statistics.data.gov.uk/id/local-authority/30UE,Planning Policy,1092,PLAN - Planning & Development,Consultants` Fees,40077,Services,5027,"Central Lancashire Local Plan GIS Support, Key outputs plus reactive GIS Mapping work linked to the preparation of the Central La",05/07/2023,0182321,500.00,Revenue,Salford GIS Ltd,16684
Chorley Borough Council,http://statistics.data.gov.uk/id/local-authority/30UE,Central Support Services,1009,EARL - Communities,Training Course Fees,17010,Indirect Employee Expenses,5002,Training agreed in 2022 for NAME REDACTED. ILM Level 7,19/07/2023,0181110,"2,935.00",Revenue,Salford Professional Development Ltd,68968
Chorley Borough Council,http://statistics.data.gov.uk/id/local-authority/30UE,Parking Services,1066,GROW - Commercial Services,Electricity,20013,Energy Costs,5006,"Feeder Pillar, ADDRESS REDACTED",26/07/2023,0182850,539.78,Revenue,Scottish Power,18998
Chorley Borough Council,http://statistics.data.gov.uk/id/local-authority/30UE,Business Support,1095,GROW - Commercial Services,Security Service,40062,Services,5027,"To provide evening Site Security Services at Market Walk Shopping Centre from 5pm until midnight, 7 days a week. Hourly rate 12.",12/07/2023,0182396,"2,860.20",Revenue,Secure FM Ltd,86928
Chorley Borough Council,http://statistics.data.gov.uk/id/local-authority/30UE,Business Support,1095,GROW - Commercial Services,Security Service,40062,Services,5027,"To provide site concierge services at , Tatton Gardens Extra Care facility, , hours as outlined by the premises , manager. 7 days",12/07/2023,0182400,"7,559.10",Revenue,Secure FM Ltd,86928
Chorley Borough Council,http://statistics.data.gov.uk/id/local-authority/30UE,Homelessness,1075,GROW - Commercial Services,Security Service,40062,Services,5027,"To provide site concierge services at Cotswold House temporary accommodation facility, hours as outlined , by the premises manage",12/07/2023,0182417,"7,559.10",Revenue,Secure FM Ltd,86928
Chorley Borough Council,http://statistics.data.gov.uk/id/local-authority/30UE,Business Support,1095,GROW - Commercial Services,Security Service,40062,Services,5027,To provide concierge services at Primrose Gardens Extra Care Facility as outlined by premises manager 7 days a week. Hourly rate ,19/07/2023,0182699,"7,559.10",Revenue,Secure FM Ltd,86928
Chorley Borough Council,http://statistics.data.gov.uk/id/local-authority/30UE,Central Support Services,1009,GOVN - Policy & Governance,Relocation Expenses - Legal,15001,Indirect Employee Expenses,5002,"North West Legal Consortium Annual Subscription for , 2023/2024",12/07/2023,0182601,500.00,Revenue,Sefton MBC,20443
Chorley Borough Council,http://statistics.data.gov.uk/id/local-authority/30UE,Service Management & Support,1009,CUST - Customer & Digital,Vehicles and Plant Maintenance,30045,Direct Transport Costs,5016,"As per invoice No 105/23/2189, VIN REDACTED:damage, VIN REDACTED:damage, VIN REDACTED:damage",05/07/2023,0182002,"1,015.00",Revenue,SG EQUIPMENT FINANCE LTD,18156
Chorley Borough Council,http://statistics.data.gov.uk/id/local-authority/30UE,Service Management & Support,1009,CUST - Customer & Digital,Tools & Equipment - Purchase,40003,"Equipment, Furniture & Materia",5023,"HAVSPRO VIBRATION PROTECTION EQUIPMENT, Month 1 initial payment:",12/07/2023,0182302,"1,316.20",Revenue,Sixis Technology Ltd,88644
Chorley Borough Council,http://statistics.data.gov.uk/id/local-authority/30UE,Recreation & Sport,1037,GOVN - Policy & Governance,Misc Expenses,40200,Miscellaneous Expenses,5034,"Room hire at the Civic Centre for the Green Flag Awards on Tuesday 18 July 2023:, Full Suite - 510.00, Paddock - 210.00",26/07/2023,0183083,600.00,Revenue,South Ribble Borough Council,17889
Chorley Borough Council,http://statistics.data.gov.uk/id/local-authority/30UE,Central Support Services,1009,EARL - Communities,Misc Expenses,40200,Miscellaneous Expenses,5034,Tempo Time Credits 2023-2024 Support costs,12/07/2023,0182429,"7,138.75",Revenue,Spice Innovations Ltd T/A Tempo Time Credits,61318
Chorley Borough Council,http://statistics.data.gov.uk/id/local-authority/30UE,Corporate Management,1008,EARL - Communities,Other Contributions,40145,Grants and Subscriptions,5031,Household Support Fund 4 - 1st payment,05/07/2023,0182076,"3,000.00",Revenue,St Laurence`s PCC,17814
Chorley Borough Council,http://statistics.data.gov.uk/id/local-authority/30UE,Capital,Capital,EARL - Communities,Grants,03002,Capital Expenditure,Capital,"22/00079/DFG, ADDRESS REDACTED",12/07/2023,0182243,"3,435.00",Capital,Stannah Lift Services Ltd,80943
Chorley Borough Council,http://statistics.data.gov.uk/id/local-authority/30UE,Capital,Capital,EARL - Communities,Grants,03002,Capital Expenditure,Capital,"23/00061/CAG, ADDRESS REDACTED",12/07/2023,0182460,"3,550.00",Capital,Stannah Lift Services Ltd,80943
Chorley Borough Council,http://statistics.data.gov.uk/id/local-authority/30UE,Capital,Capital,EARL - Communities,Grants,03002,Capital Expenditure,Capital,ADDRESS REDACTED,12/07/2023,0182506,"2,637.00",Capital,Stannah Lift Services Ltd,80943
Chorley Borough Council,http://statistics.data.gov.uk/id/local-authority/30UE,Capital,Capital,EARL - Communities,Grants,03002,Capital Expenditure,Capital,ADDRESS REDACTED,12/07/2023,0182507,"3,072.00",Capital,Stannah Lift Services Ltd,80943
Chorley Borough Council,http://statistics.data.gov.uk/id/local-authority/30UE,Capital,Capital,EARL - Communities,Grants,03002,Capital Expenditure,Capital,23/00083/CAG,19/07/2023,0182735,"6,258.00",Capital,Stannah Lift Services Ltd,80943
Chorley Borough Council,http://statistics.data.gov.uk/id/local-authority/30UE,Capital,Capital,EARL - Communities,Grants,03002,Capital Expenditure,Capital,ADDRESS REDACTED,26/07/2023,0182817,"6,112.00",Capital,Stannah Lift Services Ltd,80943
Chorley Borough Council,http://statistics.data.gov.uk/id/local-authority/30UE,Capital,Capital,EARL - Communities,Grants,03002,Capital Expenditure,Capital,ADDRESS REDACTED,26/07/2023,0182818,"5,291.00",Capital,Stannah Lift Services Ltd,80943
Chorley Borough Council,http://statistics.data.gov.uk/id/local-authority/30UE,Capital,Capital,EARL - Communities,Grants,03002,Capital Expenditure,Capital,ADDRESS REDACTED,26/07/2023,0183151,"2,997.00",Capital,Stannah Lift Services Ltd,80943
Chorley Borough Council,http://statistics.data.gov.uk/id/local-authority/30UE,Capital,Capital,PLAN - Planning & Development,Main Contractor,03007,Capital Expenditure,Capital,"Wigan Lane Archery Facility remaining Professional fees from contract, extra design work to take drainage to the boundary, Local ",12/07/2023,0182431,"6,075.83",Capital,Steve Wells Associates Ltd,77157
Chorley Borough Council,http://statistics.data.gov.uk/id/local-authority/30UE,Culture & Heritage,1036,GOVN - Policy & Governance,Furniture - Purchase,40012,"Equipment, Furniture & Materia",5023,Delivery to ADDRESS REDACTED 80x Limewash Chiavari Chairs - WSA24600 - with vinyl EZ clean faux leather wh,12/07/2023,0182079,"3,356.00",Revenue,Strictly Tables and Chairs Ltd,87105
Chorley Borough Council,http://statistics.data.gov.uk/id/local-authority/30UE,Capital,Capital,EARL - Communities,Grants,03002,Capital Expenditure,Capital,22/00132/CAG,26/07/2023,0183150,"8,484.00",Capital,Stringfellow Bldg Cntrctrs Ltd,17893
Chorley Borough Council,http://statistics.data.gov.uk/id/local-authority/30UE,Capital,Capital,EARL - Communities,Grants,03002,Capital Expenditure,Capital,23/00003/DFG,26/07/2023,0183152,"6,025.00",Capital,Stringfellow Bldg Cntrctrs Ltd,17893
Chorley Borough Council,http://statistics.data.gov.uk/id/local-authority/30UE,Service Management & Support,1009,CUST - Customer & Digital,Refuse Collection,20037,Cleaning and Domestic Supplies,5012,"Exchange 20 yard Street Sweeping Skip @ , 80.96 , to cover period 01/04/2022 - 31/03/2023",19/07/2023,0182603,"1,133.44",Revenue,SUEZ R&R UK LTD,17615
Chorley Borough Council,http://statistics.data.gov.uk/id/local-authority/30UE,Service Management & Support,1009,CUST - Customer & Digital,Refuse Collection,20037,Cleaning and Domestic Supplies,5012,"Exchange 35 yard General Waste Skip @ , 89.94, to cover period 01/04/2022 - 31/03/2023",19/07/2023,0182603,"1,528.98",Revenue,SUEZ R&R UK LTD,17615
Chorley Borough Council,http://statistics.data.gov.uk/id/local-authority/30UE,Capital,Capital,PLAN - Planning & Development,Main Contractor,03007,Capital Expenditure,Capital,Topographical Survey at Gillet Playing Fields in accordance with Quote ref: 23F057,12/07/2023,0182362,575.00,Capital,Survey Operations Ltd,55910
Chorley Borough Council,http://statistics.data.gov.uk/id/local-authority/30UE,Homelessness,1075,EARL - Communities,Grants - Tenant Participation,40142,Grants and Subscriptions,5031,,19/07/2023,0182775,500.00,Revenue,Susan McGuigan,85422
Chorley Borough Council,http://statistics.data.gov.uk/id/local-authority/30UE,Homelessness,1075,EARL - Communities,Grants - Tenant Participation,40142,Grants and Subscriptions,5031,,19/07/2023,0182785,500.00,Revenue,Susan Ranson,85499
Chorley Borough Council,http://statistics.data.gov.uk/id/local-authority/30UE,Unapportionable Central OHeads,1009,GOVN - Policy & Governance,Pensions Increase Act Payments,18005,Indirect Employee Expenses,5002,Rechargeable Pension Costs First Half 2023/24,05/07/2023,0182175,"3,286.07",Revenue,Tameside MBC-Gmpf,17034
Chorley Borough Council,http://statistics.data.gov.uk/id/local-authority/30UE,Planning Policy,1092,PLAN - Planning & Development,Professional Fees,40063,Services,5027,Review of existing Central Lancashire model,12/07/2023,0182435,"8,000.00",Revenue,Tetra Tech Environment Planning Transport Limited,76236
Chorley Borough Council,http://statistics.data.gov.uk/id/local-authority/30UE,Business Support,1095,GROW - Commercial Services,Legal Fees,40171,Miscellaneous Expenses,5034,Provision of SIA Security Officers June 2023 - your invoice INV17304,19/07/2023,0182682,"7,782.72",Revenue,The ExcluSec Group Ltd,78056
Chorley Borough Council,http://statistics.data.gov.uk/id/local-authority/30UE,Business Support,1095,GROW - Commercial Services,Legal Fees,40171,Miscellaneous Expenses,5034,travellers eviction 17.07.23,26/07/2023,0183045,"2,900.00",Revenue,The ExcluSec Group Ltd,78056
Chorley Borough Council,http://statistics.data.gov.uk/id/local-authority/30UE,Central Support Services,1009,EARL - Communities,Children's Activities,40188,Miscellaneous Expenses,5034,Delivery of wrestling event for Chorley Summer HAF Programme 2023 as per agreement,19/07/2023,0182758,"1,000.00",Revenue,The Lancashire Wrestling Federation,77429
Chorley Borough Council,http://statistics.data.gov.uk/id/local-authority/30UE,Central Support Services,1009,CUST - Customer & Digital,Computer Equipment-Purchase,40098,Communication and Computing,5028,APs and set up,05/07/2023,0181903,"5,665.70",Revenue,The Networking People (NorthWest) Ltd T/a TNP Ltd,73446
Chorley Borough Council,http://statistics.data.gov.uk/id/local-authority/30UE,Central Support Services,1009,CUST - Customer & Digital,IT Consultancy Fees,40223,Services,5027,"Astley Hall - Sundries and Engineering to complete new corporate network connection, , TNPSFP-GLC-LH-SM - TNP Compatible 1G LX SF",05/07/2023,0182050,725.00,Revenue,The Networking People (NorthWest) Ltd T/a TNP Ltd,73446
Chorley Borough Council,http://statistics.data.gov.uk/id/local-authority/30UE,Service Management & Support,1009,CUST - Customer & Digital,Training Course Fees,17010,Indirect Employee Expenses,5002,Training & exam fee for the RPII Operational Inspector,12/07/2023,0182361,"1,170.00",Revenue,The Play Inspection Company,20632
Chorley Borough Council,http://statistics.data.gov.uk/id/local-authority/30UE,Culture & Heritage,1036,GOVN - Policy & Governance,Souvenirs,40033,"Equipment, Furniture & Materia",5023,"Wax House Order			, Product Name 	Price per Unit 	Qty. 	Price per line, Luxury Soy Candles:			, Bergamot & Orange	10.42	 4	 41.",26/07/2023,0182867,527.35,Revenue,The Wax House,80859
Chorley Borough Council,http://statistics.data.gov.uk/id/local-authority/30UE,Central Support Services,1009,GOVN - Policy & Governance,Agency Staff,13000,Direct Employee Expenses,5001,Charges for Interim Director of Commercial & Property Services,26/07/2023,0182489,"1,620.00",Revenue,Tile Hill Interim & Executive Ltd,87048
Chorley Borough Council,http://statistics.data.gov.uk/id/local-authority/30UE,Homelessness,1075,EARL - Communities,Grants - Tenant Participation,40142,Grants and Subscriptions,5031,,19/07/2023,0182786,500.00,Revenue,Timothy Philips,85423
Chorley Borough Council,http://statistics.data.gov.uk/id/local-authority/30UE,Central Support Services,1009,GROW - Commercial Services,Professional Fees,40063,Services,5027,"Land Value Assessment for Woodlands, Southport Road, Project number: 13561",12/07/2023,0181327,"3,000.00",Revenue,Trebbi Continuum,77723
Chorley Borough Council,http://statistics.data.gov.uk/id/local-authority/30UE,Central Support Services,1009,GROW - Commercial Services,Professional Fees,40063,Services,5027,"Land Value Assessment for Woodlands, , Southport Road, Project number: 13561, , Invoice 2.",12/07/2023,0182596,"1,500.00",Revenue,Trebbi Continuum,77723
Chorley Borough Council,http://statistics.data.gov.uk/id/local-authority/30UE,Central Support Services,1009,GOVN - Policy & Governance,Professional Fees,40063,Services,5027,"To update the economic assessment in relation to the , new hospital proposed for the Cuerden Site",19/07/2023,0182747,"1,500.00",Revenue,Trebbi Continuum,77723
Chorley Borough Council,http://statistics.data.gov.uk/id/local-authority/30UE,Service Management & Support,1009,CUST - Customer & Digital,Grounds Maintenance Contractor,20043,Grounds Maintenance Costs,5013,ADDRESS REDACTED. Fell multistemmed Willow,05/07/2023,0181877,860.00,Revenue,Treescape North West Ltd,17688
Chorley Borough Council,http://statistics.data.gov.uk/id/local-authority/30UE,Service Management & Support,1009,CUST - Customer & Digital,Grounds Maintenance Contractor,20043,Grounds Maintenance Costs,5013,ADDRESS REDACTED. Fell Ash.,05/07/2023,0181912,860.00,Revenue,Treescape North West Ltd,17688
Chorley Borough Council,http://statistics.data.gov.uk/id/local-authority/30UE,Service Management & Support,1009,CUST - Customer & Digital,Grounds Maintenance Contractor,20043,Grounds Maintenance Costs,5013,ADDRESS REDACTED. Fell 4 Willows and a Birch,05/07/2023,0181913,860.00,Revenue,Treescape North West Ltd,17688
Chorley Borough Council,http://statistics.data.gov.uk/id/local-authority/30UE,Capital,Capital,CUST - Customer & Digital,Main Contractor,03007,Capital Expenditure,Capital,"Arboricultural impact assessment, tree protection plan and method statement for Queen`s Rd Car Park works.",19/07/2023,0180186,"1,350.00",Capital,TREESTYLE CONSULTANCY,77078
Chorley Borough Council,http://statistics.data.gov.uk/id/local-authority/30UE,Unapportionable Central OHeads,1009,GOVN - Policy & Governance,Misc Expenses,40200,Miscellaneous Expenses,5034,01 july 2023,19/07/2023,0182503,"1,467.40",Revenue,UK Healthcare (BDHSC),17241
Chorley Borough Council,http://statistics.data.gov.uk/id/local-authority/30UE,Tourism,1039,GOVN - Policy & Governance,Misc Expenses,40200,Miscellaneous Expenses,5034,Face Painting - A Taste of Chorley 2023 10am - 4pm - Saturday 3 & Sunday 4 June 2023 2 face painters each day. 300 per person pe,12/07/2023,0181867,"1,320.00",Revenue,UK Media and Events Limited,71221
Chorley Borough Council,http://statistics.data.gov.uk/id/local-authority/30UE,Unapportionable Central OHeads,1009,CUST - Customer & Digital,Postages,40082,Communication and Computing,5028,Daily Hybrid Mail & Annual Billing for Account H360363,05/07/2023,0182163,"1,090.50",Revenue,UKMAIL Ltd (Mail),57758
Chorley Borough Council,http://statistics.data.gov.uk/id/local-authority/30UE,Unapportionable Central OHeads,1009,CUST - Customer & Digital,Postages,40082,Communication and Computing,5028,Daily Hybrid Mail & Annual Billing for Account H360363,05/07/2023,0182192,763.00,Revenue,UKMAIL Ltd (Mail),57758
Chorley Borough Council,http://statistics.data.gov.uk/id/local-authority/30UE,Unapportionable Central OHeads,1009,CUST - Customer & Digital,Postages,40082,Communication and Computing,5028,Daily Hybrid Mail & Annual Billing for Account H360363,05/07/2023,0182193,"1,135.04",Revenue,UKMAIL Ltd (Mail),57758
Chorley Borough Council,http://statistics.data.gov.uk/id/local-authority/30UE,Unapportionable Central OHeads,1009,CUST - Customer & Digital,Postages,40082,Communication and Computing,5028,Daily Hybrid Mail & Annual Billing for Account H360363,05/07/2023,0182195,"2,086.35",Revenue,UKMAIL Ltd (Mail),57758
Chorley Borough Council,http://statistics.data.gov.uk/id/local-authority/30UE,Unapportionable Central OHeads,1009,CUST - Customer & Digital,Postages,40082,Communication and Computing,5028,Daily Hybrid Mail & Annual Billing for Account H360363,05/07/2023,0182196,"1,081.63",Revenue,UKMAIL Ltd (Mail),57758
Chorley Borough Council,http://statistics.data.gov.uk/id/local-authority/30UE,Unapportionable Central OHeads,1009,CUST - Customer & Digital,Postages,40082,Communication and Computing,5028,Daily Hybrid Mail & Annual Billing for Account H360363,05/07/2023,0182197,"1,312.68",Revenue,UKMAIL Ltd (Mail),57758
Chorley Borough Council,http://statistics.data.gov.uk/id/local-authority/30UE,Unapportionable Central OHeads,1009,CUST - Customer & Digital,Postages,40082,Communication and Computing,5028,Daily Hybrid Mail & Annual Billing for Account H360363,05/07/2023,0182198,"1,029.64",Revenue,UKMAIL Ltd (Mail),57758
Chorley Borough Council,http://statistics.data.gov.uk/id/local-authority/30UE,Unapportionable Central OHeads,1009,CUST - Customer & Digital,Postages,40082,Communication and Computing,5028,Daily Hybrid Mail & Annual Billing for Account H360363,05/07/2023,0182199,"1,980.18",Revenue,UKMAIL Ltd (Mail),57758
Chorley Borough Council,http://statistics.data.gov.uk/id/local-authority/30UE,Unapportionable Central OHeads,1009,CUST - Customer & Digital,Postages,40082,Communication and Computing,5028,Daily Hybrid Mail & Annual Billing for Account H360363,26/07/2023,0182600,"1,959.61",Revenue,UKMAIL Ltd (Mail),57758
Chorley Borough Council,http://statistics.data.gov.uk/id/local-authority/30UE,Unapportionable Central OHeads,1009,CUST - Customer & Digital,Postages,40082,Communication and Computing,5028,Daily Hybrid Mail & Annual Billing for Account H360363,26/07/2023,0182643,662.78,Revenue,UKMAIL Ltd (Mail),57758
Chorley Borough Council,http://statistics.data.gov.uk/id/local-authority/30UE,Unapportionable Central OHeads,1009,CUST - Customer & Digital,Postages,40082,Communication and Computing,5028,Daily Hybrid Mail & Annual Billing for Account H360363,26/07/2023,0182644,"1,005.47",Revenue,UKMAIL Ltd (Mail),57758
Chorley Borough Council,http://statistics.data.gov.uk/id/local-authority/30UE,Control Accounts,Control,GOVN - Policy & Governance,General Balances,00100,Balance Sheet,Balance,Unify - June 23 Monthly Deductions from payroll,12/07/2023,0182564,"1,117.00",Revenue,Unify Credit Union Ltd,55509
Chorley Borough Council,http://statistics.data.gov.uk/id/local-authority/30UE,Regulatory Services,1048,PLAN - Planning & Development,"Hackney Badges, Plates Etc.",40023,"Equipment, Furniture & Materia",5023,"Flexiplate, Clear, Size 4F, Type A Adhesive X 4 Packs of 50 @ 169.74 per pack",26/07/2023,0182994,678.96,Revenue,VIP-SYSTEM LIMITED,69902
Chorley Borough Council,http://statistics.data.gov.uk/id/local-authority/30UE,Development Control,1091,PLAN - Planning & Development,Agency Staff,13000,Direct Employee Expenses,5001,Contract work to assist with planning application processing Contractor: NAME REDACTED Time period: 1 April 2023  31 December 202,05/07/2023,0180379,"1,898.00",Revenue,Vivid Resourcing Ltd,76938
Chorley Borough Council,http://statistics.data.gov.uk/id/local-authority/30UE,Development Control,1091,PLAN - Planning & Development,Agency Staff,13000,Direct Employee Expenses,5001,"Contract work to assist with planning application processing, Contractor: NAME REDACTED, Time period: 1 April 2023  31 December 2",19/07/2023,0181680,"1,508.00",Revenue,Vivid Resourcing Ltd,76938
Chorley Borough Council,http://statistics.data.gov.uk/id/local-authority/30UE,Development Control,1091,PLAN - Planning & Development,Agency Staff,13000,Direct Employee Expenses,5001,"Contract work to assist with planning application processing, Contractor: NAME REDACTED, Time period: 1 April 2023  31 December 2",19/07/2023,0181890,"1,898.00",Revenue,Vivid Resourcing Ltd,76938
Chorley Borough Council,http://statistics.data.gov.uk/id/local-authority/30UE,Central Support Services,1009,GROW - Commercial Services,Agency Staff,13000,Direct Employee Expenses,5001,Agency Fees for Estate Surveyor NAME REDACTED - 12mths,05/07/2023,0182046,916.08,Revenue,Vivid Resourcing Ltd,76938
Chorley Borough Council,http://statistics.data.gov.uk/id/local-authority/30UE,Central Support Services,1009,GROW - Commercial Services,Agency Staff,13000,Direct Employee Expenses,5001,Surveyor fees for NAME REDACTED ,05/07/2023,0182068,"5,120.50",Revenue,Vivid Resourcing Ltd,76938
Chorley Borough Council,http://statistics.data.gov.uk/id/local-authority/30UE,Development Control,1091,PLAN - Planning & Development,Agency Staff,13000,Direct Employee Expenses,5001,"Contract work to assist with planning application processing, Contractor: NAME REDACTED, Time period: 1 April 2023  31 December 2",05/07/2023,0182116,"1,898.00",Revenue,Vivid Resourcing Ltd,76938
Chorley Borough Council,http://statistics.data.gov.uk/id/local-authority/30UE,Central Support Services,1009,GROW - Commercial Services,Agency Staff,13000,Direct Employee Expenses,5001,Agency Fees for Estate Surveyor NAME REDACTED - 12mths,05/07/2023,0182138,657.12,Revenue,Vivid Resourcing Ltd,76938
Chorley Borough Council,http://statistics.data.gov.uk/id/local-authority/30UE,Development Control,1091,PLAN - Planning & Development,Agency Staff,13000,Direct Employee Expenses,5001,"Contract work to assist with planning application processing, Contractor: NAME REDACTED, Time period: 1 April 2023  31 December 2",26/07/2023,0182469,"1,664.00",Revenue,Vivid Resourcing Ltd,76938
Chorley Borough Council,http://statistics.data.gov.uk/id/local-authority/30UE,Central Support Services,1009,CUST - Customer & Digital,Computer Equipment-Maintenance,40105,Communication and Computing,5028,"Chorley Committee Room 1 Hybrid and Streaming System, Bosch Wireless Conference System - 14385, Camera System for TEAMS and Stre",05/07/2023,0181325,"27,998.75",Revenue,VP-AV Ltd,81653
Chorley Borough Council,http://statistics.data.gov.uk/id/local-authority/30UE,Capital,Capital,GROW - Commercial Services,Main Contractor,03007,Capital Expenditure,Capital,"Clayton Green Sports Centre, , Installation of Halogen Heaters 2022 (invoice missed so previous PO was cancelled",05/07/2023,0182047,"1,394.00",Capital,Walker Gabbott Electrical Ltd,83932
Chorley Borough Council,http://statistics.data.gov.uk/id/local-authority/30UE,Recreation & Sport,1037,GOVN - Policy & Governance,Tools & Equipment - Maintenance,40005,"Equipment, Furniture & Materia",5023,classification code 020136chorley town hall kitchenCIS SplitsLabour 75Materials 720vat 159total 954invoice number 971 order n,12/07/2023,0182054,795.00,Revenue,Walker Gabbott Electrical Ltd,83932
Chorley Borough Council,http://statistics.data.gov.uk/id/local-authority/30UE,Unapportionable Central OHeads,1009,GROW - Commercial Services,General Repairs - Reactive,20004,Repairs Maintenance & Alts,5005,Purchase 4 air con units for Union St (To be delivered to Bengal St),12/07/2023,0182085,"1,600.00",Revenue,Walker Gabbott Electrical Ltd,83932
Chorley Borough Council,http://statistics.data.gov.uk/id/local-authority/30UE,Capital,Capital,GROW - Commercial Services,Other Contractor,03012,Capital Expenditure,Capital,"Strawberry Fields, Install electrical supply for first set of auto barriers",05/07/2023,0182291,546.96,Capital,Walker Gabbott Electrical Ltd,83932
Chorley Borough Council,http://statistics.data.gov.uk/id/local-authority/30UE,Capital,Capital,GROW - Commercial Services,Other Capital Related Fees,03024,Capital Expenditure,Capital,"Chorley Market Refurb electrical worksUNITS 31A, 26,24,31,22, 25 AND BOBB INN - INSTALL LIGHTS AND TEST (UNIT 22) 300 - INSTALL ",05/07/2023,0182294,"2,504.91",Capital,Walker Gabbott Electrical Ltd,83932
Chorley Borough Council,http://statistics.data.gov.uk/id/local-authority/30UE,Unapportionable Central OHeads,1009,GROW - Commercial Services,General Repairs - Reactive,20004,Repairs Maintenance & Alts,5005,Primrose - Electrical Reactive Repairs,12/07/2023,0182308,578.00,Revenue,Walker Gabbott Electrical Ltd,83932
Chorley Borough Council,http://statistics.data.gov.uk/id/local-authority/30UE,Capital,Capital,GROW - Commercial Services,Main Contractor,03007,Capital Expenditure,Capital,"Astley Hall Refurbishment work in the Cottage, 1. Second fixing of the 1st floor Lights., 2. Installation of Emergency lighting.,",12/07/2023,0182324,"7,359.61",Capital,Walker Gabbott Electrical Ltd,83932
Chorley Borough Council,http://statistics.data.gov.uk/id/local-authority/30UE,Unapportionable Central OHeads,1009,GROW - Commercial Services,Planned Maintenance,20006,Repairs Maintenance & Alts,5005,Planned Electrical Maintenance and Remedial Works @ Bengal Street,12/07/2023,0182327,920.00,Revenue,Walker Gabbott Electrical Ltd,83932
Chorley Borough Council,http://statistics.data.gov.uk/id/local-authority/30UE,Unapportionable Central OHeads,1009,GROW - Commercial Services,General Repairs - Reactive,20004,Repairs Maintenance & Alts,5005,Reactive Electrical Repair Works @ Chorley Market,12/07/2023,0182394,653.99,Revenue,Walker Gabbott Electrical Ltd,83932
Chorley Borough Council,http://statistics.data.gov.uk/id/local-authority/30UE,Unapportionable Central OHeads,1009,GROW - Commercial Services,Planned Maintenance,20006,Repairs Maintenance & Alts,5005,Planned Electrical Maintenance and Remedial Works @ Community Centre`s,12/07/2023,0182402,575.00,Revenue,Walker Gabbott Electrical Ltd,83932
Chorley Borough Council,http://statistics.data.gov.uk/id/local-authority/30UE,Unapportionable Central OHeads,1009,GROW - Commercial Services,Planned Maintenance,20006,Repairs Maintenance & Alts,5005,Planned Electrical Maintenance and Remedial Works @ Community Centre`s,12/07/2023,0182403,"1,560.00",Revenue,Walker Gabbott Electrical Ltd,83932
Chorley Borough Council,http://statistics.data.gov.uk/id/local-authority/30UE,Unapportionable Central OHeads,1009,GROW - Commercial Services,Planned Maintenance,20006,Repairs Maintenance & Alts,5005,Planned Electrical Maintenance and Remedial Works @ Bengal Street,12/07/2023,0182406,"1,962.50",Revenue,Walker Gabbott Electrical Ltd,83932
Chorley Borough Council,http://statistics.data.gov.uk/id/local-authority/30UE,Unapportionable Central OHeads,1009,GROW - Commercial Services,Planned Maintenance,20006,Repairs Maintenance & Alts,5005,Town Hall - Electrical Planned Maintenance and remedials,12/07/2023,0182419,660.00,Revenue,Walker Gabbott Electrical Ltd,83932
Chorley Borough Council,http://statistics.data.gov.uk/id/local-authority/30UE,Unapportionable Central OHeads,1009,GROW - Commercial Services,Planned Maintenance,20006,Repairs Maintenance & Alts,5005,"Cotswold House, , Compliance testing",12/07/2023,0182432,"4,470.00",Revenue,Walker Gabbott Electrical Ltd,83932
Chorley Borough Council,http://statistics.data.gov.uk/id/local-authority/30UE,Unapportionable Central OHeads,1009,GROW - Commercial Services,General Repairs - Reactive,20004,Repairs Maintenance & Alts,5005,Test all electrical supplies and replace 4 no. enclosures to walled Garden. Electrical distribution with traffolite lables for su,19/07/2023,0182628,"3,302.10",Revenue,Walker Gabbott Electrical Ltd,83932
Chorley Borough Council,http://statistics.data.gov.uk/id/local-authority/30UE,Unapportionable Central OHeads,1009,GROW - Commercial Services,Planned Maintenance,20006,Repairs Maintenance & Alts,5005,Covered Market Emergency Lighting Repairs Ref - LH1 5052023-1 Order as per NAME REDACTED,19/07/2023,0182629,"3,608.37",Revenue,Walker Gabbott Electrical Ltd,83932
Chorley Borough Council,http://statistics.data.gov.uk/id/local-authority/30UE,Unapportionable Central OHeads,1009,GROW - Commercial Services,Planned Maintenance,20006,Repairs Maintenance & Alts,5005,"Town Hall Emergency Lighting Remedials NAME REDACTED Orders 16983 and 16984 16983 - EM LIGHT C10 COVER MISSING	 150.00					 5.4 NO CH",26/07/2023,0182640,"4,028.00",Revenue,Walker Gabbott Electrical Ltd,83932
Chorley Borough Council,http://statistics.data.gov.uk/id/local-authority/30UE,Unapportionable Central OHeads,1009,GROW - Commercial Services,General Repairs - Reactive,20004,Repairs Maintenance & Alts,5005,Chorley Market Unit 26 works for Caribbean fast food tenant as agreed with NAME REDACTED/NAME REDACTED,19/07/2023,0182641,"1,014.00",Revenue,Walker Gabbott Electrical Ltd,83932
Chorley Borough Council,http://statistics.data.gov.uk/id/local-authority/30UE,Unapportionable Central OHeads,1009,GROW - Commercial Services,Water - Metered Supplies,20022,Water Services,5009,"408 353 8012, 11 May 23 - 10 Jun 23",05/07/2023,0182168,618.24,Revenue,WaterPlus 4083538012 Destructor Stump Lane Chorley,85458
Chorley Borough Council,http://statistics.data.gov.uk/id/local-authority/30UE,Unapportionable Central OHeads,1009,GROW - Commercial Services,Water - Metered Supplies,20022,Water Services,5009,Stump Lane Destructor,26/07/2023,0182841,598.18,Revenue,WaterPlus 4083538012 Destructor Stump Lane Chorley,85458
Chorley Borough Council,http://statistics.data.gov.uk/id/local-authority/30UE,Unapportionable Central OHeads,1009,GROW - Commercial Services,Water - Metered Supplies,20022,Water Services,5009,Town Hall,05/07/2023,0182174,"1,031.84",Revenue,WaterPlus 4085884879 Town Hall,84240
Chorley Borough Council,http://statistics.data.gov.uk/id/local-authority/30UE,Homelessness,1075,GROW - Commercial Services,Water - Metered Supplies,20022,Water Services,5009,"416 056 5113, 28 May 23 - 27 Jun 23",05/07/2023,0182277,"1,489.91",Revenue,WaterPlus 4160565113 Cotswold House,85562
Chorley Borough Council,http://statistics.data.gov.uk/id/local-authority/30UE,Democratic Represent and  Mgnt,1007,GROW - Commercial Services,Water - Metered Supplies,20022,Water Services,5009,Astley Coach house,26/07/2023,0182845,511.97,Revenue,WaterPlus 4160565113 Cotswold House,85562
Chorley Borough Council,http://statistics.data.gov.uk/id/local-authority/30UE,Business Support,1095,GROW - Commercial Services,Water - Metered Supplies,20022,Water Services,5009,,05/07/2023,0182194,910.42,Revenue,WaterPlus 6002259172 The Strawberry Fields,86926
Chorley Borough Council,http://statistics.data.gov.uk/id/local-authority/30UE,Business Support,1095,GROW - Commercial Services,Water - Metered Supplies,20022,Water Services,5009,14/6 to 31/7/23,26/07/2023,0183016,"1,026.97",Revenue,WaterPlus 6002259172 The Strawberry Fields,86926
Chorley Borough Council,http://statistics.data.gov.uk/id/local-authority/30UE,Capital,Capital,PLAN - Planning & Development,Main Contractor,03007,Capital Expenditure,Capital,Transfer of S106 funds for tree works to enhance Heather Hill Cottage/Canal Basin Nature Trail,19/07/2023,0176657,"1,327.83",Capital,Whittle-le-Woods Parish Council,18602
Chorley Borough Council,http://statistics.data.gov.uk/id/local-authority/30UE,Recognised Cap Grants & Conts,,PLAN - Planning & Development,Contributions Parish Councils,40144,Grants and Subscriptions,5031,CIL Receipt 1/10 - 31/03/23,19/07/2023,0179760,"1,328.91",Revenue,Whittle-le-Woods Parish Council,18602
Chorley Borough Council,http://statistics.data.gov.uk/id/local-authority/30UE,Unapportionable Central OHeads,1009,GROW - Commercial Services,Planned Maintenance,20006,Repairs Maintenance & Alts,5005,Market - Auto Doors and shutters Planned Maintenance,19/07/2023,0181862,"5,400.00",Revenue,Yates Entrance Solutions Ltd,84714
